Workbook

Sheet Basics_PS
B3: =ROUND(RAND()*(9-(2))+(2),0)*10 -> 80 | D3: x | F3: = | G3: =B3*M3 -> 1440 | M3: =ROUND(RAND()*(30-(11))+(11),1) -> 18 | AA3: =AB3/100*AF3 -> 399 | AB3: =ROUND(RAND()*(19-(1))+(1),0)*5 -> 95 | AD3: % | AE3: of | AF3: =ROUND(RAND()*(40-(11))+(11),0)*20 -> 420 | AH3: =
O10: Basic Calculations
C15: ÷ | E15: =ROUND(RAND()*(9-(2))+(2),0)*10 -> 20 | F15: = | G15: =ROUND(RAND()*(50-(11))+(11),0) -> 41 | M15: =G15*E15 -> 820 | N15: Find the missing numbers | AA15: =ROUND(RAND()*(80-(11))+(11),0)*AC16 -> 335 | AC15: =ROUND(RAND()*(8-(2))+(2),0) -> 4 | AD15: of | AH15: = | AI15: =AC15*AA15/AC16 -> 268
AC16: =AC15+1 -> 5

Sheet Integers_PS
D3: =ROUND(RAND()*((-3)-(-30))+(-30),0) -> -22 | E3: + | G3: = | H3: =D3+N3 -> -34 | N3: =ROUND(RAND()*((-3)-(-30))+(-30),0) -> -12 | AB3: =ROUND(RAND()*((9)-(2))+(2),0)*10 -> 70 | AH3: =ROUND(RAND()*((-2)-(-9))+(-9),0)*10 -> -30 | AI3: - | AL3: = | AM3: =AH3-AB3 -> -100
P10: Find the missing numbers
P11: Think THERMOMETER !
D15: + | F15: =ROUND(RAND()*(20-(-20))+(-20),0) -> -5 | G15: = | H15: =N15+F15 -> -9 | N15: =ROUND(RAND()*(20-(-20))+(-20),0) -> -4 | AB15: =ROUND(RAND()*(90-(9))+(9),0) -> 62 | AH15: =ROUND(RAND()*(-9-(-90))+(-90),0) -> -49 | AI15: - | AL15: = | AM15: =AH15-AB15 -> -111

Sheet Equation_PS
D3: =CHAR(RAND()*(122-113)+113) -> x | E3: - | G3: = | H3: =S12-N3 -> -7 | N3: =ROUND(RAND()*(19-(5))+(5),0) -> 18 | AB3: =AH3*S12 -> 990 | AH3: =ROUND(RAND()*((9)-(2))+(2),0)*10 -> 90 | AI3: =CHAR(RAND()*(105-97)+97) -> e | AJ3: =
P10: The solution to each
Q11: equation is
S12: =ROUND(RAND()*(12-2)+2,0) -> 11
D15: =CHAR(RAND()*(122-113)+113) -> w | E15: + | F15: =ROUND(RAND()*(10-(2))+(2),0) -> 9 | G15: = | H15: =N15*S12+F15 -> 130 | N15: =ROUND(RAND()*(19-(5))+(5),0) -> 11 | O15: Find the missing numbers | AB15: =ROUND(RAND()*(10-(1))+(1),0) -> 3 | AH15: =ROUND(RAND()*(3-(2))+(2),0) -> 3 | AI15: =CHAR(RAND()*(105-97)+97) -> b | AJ15: - | AL15: = | AM15: =AH15*S12-AB15 -> 30

Sheet Statistics_PS
B2: These numbers are in ascending order. | X2: These numbers are in ascending order.
B3: ="The range for the data is "&L3&" ." -> The range for the data is 29 . | L3: =(LARGE(C4:H4,1)-SMALL(C4:H4,1)) -> 29 | X3: ="The range for the data is "&AH3&" ." -> The range for the data is 69 . | AH3: =(LARGE(Y4:AD4,1)-SMALL(Y4:AD4,1)) -> 69
C4: =C5 -> 12 | D4: =D5 -> 13 | E4: =F5 -> 19 | F4: =H5 -> 21 | G4: =J5 -> 38 | H4: =L5 -> 41 | Y4: =X5 -> 20 | Z4: =Z5 -> 31 | AA4: =AB5 -> 44 | AB4: =AD5 -> 58 | AC4: =AF5 -> 62 | AD4: =AG5 -> 89
C5: =ROUND(RAND()*(12-2)+2,0) -> 12 | D5: =ROUND(RAND()*(15-12)+12,0) -> 13 | F5: =ROUND(RAND()*(20-15)+15,0) -> 19 | H5: =ROUND(RAND()*(30-20)+20,0) -> 21 | J5: =ROUND(RAND()*(40-30)+30,0) -> 38 | L5: =ROUND(RAND()*(50-40)+40,0) -> 41 | X5: =ROUND(RAND()*(30-10)+10,0) -> 20 | Y5: =ROUND(RAND()*(10-2)+2,0) -> 10 | Z5: =ROUND(RAND()*(40-30)+30,0) -> 31 | AB5: =ROUND(RAND()*(50-40)+40,0) -> 44 | AD5: =ROUND(RAND()*(60-50)+50,0) -> 58 | AF5: =ROUND(RAND()*(70-60)+60,0) -> 62 | AG5: =ROUND(RAND()*(90-70)+70,0) -> 89
O9: Basic Statistics
B12: Find the mean of this data set. | AA12: ="The mean of 4 numbers is "&AJ12& "." -> The mean of 4 numbers is 51. | AJ12: =AVERAGE(AB14:AE14) -> 51
D13: mean = | J13: (to 1 d.p.) | L13: =ROUND(AVERAGE(C14:H14),1) -> 22.3 | O13: Find the missing numbers | AA13: What value is the 4th number ?
C14: =B15 -> 6 | D14: =D15 -> 17 | E14: =F15 -> 25 | F14: =H15 -> 24 | G14: =J15 -> 21 | H14: =L15 -> 41 | AB14: =AA15 -> 8 | AC14: =AC15 -> 92 | AD14: =AE15 -> 72 | AE14: =4*ROUND(RAND()*(24-1)+1,0) -> 32
B15: =ROUND(RAND()*(20-2)+2,0) -> 6 | D15: =ROUND(RAND()*(20-2)+2,0) -> 17 | F15: =ROUND(RAND()*(30-15)+15,0) -> 25 | H15: =ROUND(RAND()*(30-15)+15,0) -> 24 | J15: =ROUND(RAND()*(40-20)+20,0) -> 21 | L15: =ROUND(RAND()*(50-20)+20,0) -> 41 | M15: =G15*E15 -> 0 | AA15: =4*ROUND(RAND()*(24-1)+1,0) -> 8 | AB15: =ROUND(RAND()*(12-2)+2,0) -> 8 | AC15: =4*ROUND(RAND()*(24-1)+1,0) -> 92 | AE15: =4*ROUND(RAND()*(24-1)+1,0) -> 72

Sheet Bearings_PS
I3: What is my bearings
M5: O
K10: =ROUND(RAND()*(72-1)+1,0)*5 -> 185
K11: =360-K10 -> 175
L12: =IF(K10<100,0,"") -> 
K13: =CONCATENATE(L12,K10) -> 185

Sheet Perimeter_PS
E2: What's my Perimeter ? | O2: =CONCATENATE(O8,P8) -> 12m | AP2: =ROUND(RAND()*(30-15)+15,0) -> 28 | AQ2: cm | AR2: =2*AP2+2*AP3 -> 80 | AU2: ="What's my breadth ? if Perimeter = "&AR2&"cm" -> What's my breadth ? if Perimeter = 80cm | BE2: b cm
AP3: =ROUND(RAND()*(14-6)+6,0) -> 12 | AQ3: cm
E7: =CONCATENATE(O7,P7) -> 20m | O7: =ROUND(RAND()*(30-15)+15,0) -> 20 | P7: m | Q7: =2*O7+2*O8 -> 64 | AU7: =CONCATENATE(AP2,AQ2) -> 28cm
O8: =ROUND(RAND()*(14-6)+6,0) -> 12 | P8: m | W8: Do you know your Perimeter ?
C9: Perimeter = | N9: m | AT9: Breadth = | BE9: cm
C13: Perimeter = | P13: m | AT13: Length = | BE13: cm
E16: What's my Perimeter ? | O16: =CONCATENATE(O22,P22) -> 24.2m | AP16: =ROUND(RAND()*(30-15)+15,1) -> 23.7 | AQ16: cm | AR16: =2*AP16+2*AP17 -> 56 | AU16: ="What's my length ? if Perimeter = "&AR16&"cm" -> What's my length ? if Perimeter = 56cm | BE16: =CONCATENATE(AP17,AQ17) -> 4.3cm
AP17: =ROUND(RAND()*(9-3)+3,1) -> 4.3 | AQ17: cm
E21: =CONCATENATE(O21,P21) -> 38.1m | O21: =ROUND(RAND()*(60-31)+31,1) -> 38.1 | P21: m | Q21: =2*O21+2*O22 -> 124.6 | AU21: L cm
O22: =ROUND(RAND()*(25-15)+15,1) -> 24.2 | P22: m

Sheet Area_PS
E2: What's my Area ? | O2: =CONCATENATE(O8,P8) -> 40m | AP2: =ROUND(RAND()*(9-2)+2,0)*10 -> 80 | AQ2: cm | AR2: =AP2*AP3 -> 480 | AU2: ="What's my breadth ? If Area = "&AR2&" sq cm" -> What's my breadth ? If Area = 480 sq cm | BE2: b cm
AP3: =ROUND(RAND()*(9-3)+3,0) -> 6 | AQ3: cm
E7: =CONCATENATE(O7,P7) -> 80m | O7: =ROUND(RAND()*(9-2)+2,0)*10 -> 80 | P7: m | Q7: =O7*O8 -> 3200 | AU7: =CONCATENATE(AP2,AQ2) -> 80cm
O8: =ROUND(RAND()*(50-11)+11,0) -> 40 | P8: m | W8: Do you know your Area ?
C9: Area = | P9: m2 | AT9: Breadth = | BE9: cm
C13: Area = | P13: m2 | AT13: Length = | BE13: cm
O16: =CONCATENATE(O22,P22) -> 42m | AP16: =ROUND(RAND()*(30-15)+15,1) -> 23.3 | AQ16: cm | AR16: =AP16*AP17 -> 116.5 | AU16: ="What's my length ? If Area = "&AR16&" sq cm" -> What's my length ? If Area = 116.5 sq cm | BE16: =CONCATENATE(AP17,AQ17) -> 5cm
AP17: =ROUND(RAND()*(9-3)+3,0) -> 5 | AQ17: cm
E21: =CONCATENATE(O21,P21) -> 60m | O21: =ROUND(RAND()*(9-2)+2,0)*10 -> 60 | P21: m | Q21: =0.5*O21*O22 -> 1260 | AU21: L cm
O22: =ROUND(RAND()*(50-11)+11,0) -> 42 | P22: m

Sheet Scales_PS
M2: =CONCATENATE(M8,N8) -> 11cm | Q2: Scale is | W2: =ROUND(RAND()*(2-1)+1,0) -> 2 | Y2: cm | AA2: = | AC2: =IF(W2=1,ROUND(RAND()*(9-2)+2,0),W2*ROUND(RAND()*(3-1)+1,0)+1) -> 7 | AF2: m | AN2: =ROUND(RAND()*(30-15)+15,0) -> 27 | AO2: cm | AP2: =2*AN2+2*AN3 -> 82
AN3: =ROUND(RAND()*(14-6)+6,0) -> 14 | AO3: cm
Q4: Evaluate the real-life perimeter
C7: =CONCATENATE(M7,N7) -> 22cm | M7: =ROUND(RAND()*(30-15)+15,0) -> 22 | N7: cm | O7: =AC2/W2*2*M7+AC2/W2*2*M8 -> 231
M8: =ROUND(RAND()*(14-6)+6,0) -> 11 | N8: cm | U8: Can you work with Scales and Real-Life measurements?
A9: Perimeter = | L9: m
AR13: Area = | BC13: m2
S16: Scale is | Y16: =ROUND(RAND()*(2-1)+1,0) -> 2 | AA16: cm | AC16: = | AE16: =IF(Y16=1,ROUND(RAND()*(9-2)+2,0),Y16*ROUND(RAND()*(3-1)+1,0)+1) -> 5 | AH16: m | AN16: =ROUND(RAND()*(9-2)+2,0) -> 9 | AO16: cm | AP16: =0.5*(AE16/Y16)*AN16*(AE16/Y16)*AN17 -> 1687.5 | BC16: =CONCATENATE(AN16,AO16) -> 9cm
AN17: =ROUND(RAND()*(9-3)+3,0)*10 -> 60 | AO17: cm
S18: Evaluate the real-life Area
AS21: =CONCATENATE(AN17,AO17) -> 60cm

Sheet Percentage_PS
B2: Change the following fraction to a percentage. | V2: Change the following percentage to a fraction.
AH3: =V4/100 -> 0.2
B4: =ROUND(RAND()*(19-1)+1,0)/20 -> 0.1 | I4: % | K4: =B4*100 -> 10 | V4: =ROUND(RAND()*(19-1)+1,0)*5 -> 20 | X4: % | AD4: ( Simplify )
O9: Basic Percentages
B12: Find | G12: =B13/100*G13 -> 45 | X12: Find | AC12: =X13/100*AC13 -> 236.5 | AJ12: =AVERAGE(AB14:AE14) -> 
B13: =ROUND(RAND()*(10-1)+1,0)*5 -> 15 | D13: % | E13: of | G13: =ROUND(RAND()*(99-5)+5,0)*10 -> 300 | X13: =ROUND(RAND()*(19-1)+1,0)*5 -> 55 | Z13: % | AA13: of | AC13: =ROUND(RAND()*(99-5)+5,0)*10 -> 430
M15: =G15*E15 -> 0

Sheet Basic_Cal
C2: Basic Calculations 1 | L2: Basic Calculations 1 | U2: Basic Calculations 2 | AD2: Basic Calculations 2 | AM2: Basic Calculations 3 | AV2: Basic Calculations 3
C4: 1) | E4: =ROUND(RAND()*(10-(3))+(3),0) -> 5 | F4: x | G4: =ROUND(RAND()*(30-(11))+(11),1) -> 17.6 | L4: 1) | N4: =E4*G4 -> 88 | U4: 1) | W4: =ROUND(RAND()*(10-(3))+(3),0) -> 8 | X4: x | Y4: =ROUND(RAND()*(30-(15))+(15),1) -> 16.4 | AD4: 1) | AF4: =W4*Y4 -> 131.2 | AM4: 1) | AO4: =ROUND(RAND()*(10-(3))+(3),0) -> 5 | AP4: x | AQ4: =ROUND(RAND()*(30-(15))+(15),1) -> 24.5 | AV4: 1) | AX4: =AO4*AQ4 -> 122.5
C7: 2) | D7: =ROUND(RAND()*(30-(11))+(11),1)*G7 -> 82.8 | F7: ÷ | G7: =ROUND(RAND()*(10-(3))+(3),0) -> 6 | L7: 2) | N7: =D7/G7 -> 13.8 | U7: 2) | V7: =ROUND(RAND()*(30-(11))+(11),1)*Y7 -> 45.6 | X7: ÷ | Y7: =ROUND(RAND()*(10-(3))+(3),0) -> 3 | AD7: 2) | AF7: =V7/Y7 -> 15.2 | AM7: 2) | AN7: =ROUND(RAND()*(30-(11))+(11),1)*AQ7 -> 162.4 | AP7: ÷ | AQ7: =ROUND(RAND()*(10-(3))+(3),0) -> 7 | AV7: 2) | AX7: =AN7/AQ7 -> 23.2
C10: 3) | E10: =ROUND(RAND()*(9-(2))+(2),0)*10 -> 30 | F10: x | G10: =ROUND(RAND()*(30-(11))+(11),1) -> 25.7 | L10: 3) | N10: =E10*G10 -> 771 | U10: 3) | W10: =ROUND(RAND()*(9-(2))+(2),0)*10 -> 50 | X10: x | Y10: =ROUND(RAND()*(30-(11))+(11),2) -> 13.36 | AD10: 3) | AF10: =W10*Y10 -> 668 | AM10: 3) | AO10: =ROUND(RAND()*(9-(2))+(2),0)*10 -> 50 | AP10: x | AQ10: =ROUND(RAND()*(30-(11))+(11),2) -> 23.76 | AV10: 3) | AX10: =AO10*AQ10 -> 1188
C13: 4) | D13: =G13*N13 -> 2150 | F13: ÷ | G13: =ROUND(RAND()*(9-(3))+(3),0)*10 -> 50 | L13: 4) | N13: =ROUND(RAND()*(50-(11))+(11),0) -> 43 | U13: 4) | V13: =Y13*AF13 -> 1404 | X13: ÷ | Y13: =ROUND(RAND()*(9-(3))+(3),0)*10 -> 40 | AD13: 4) | AF13: =ROUND(RAND()*(50-(11))+(11),1) -> 35.1 | AM13: 4) | AN13: =AQ13*AX13 -> 2154 | AP13: ÷ | AQ13: =ROUND(RAND()*(9-(3))+(3),0)*10 -> 60 | AV13: 4) | AX13: =ROUND(RAND()*(50-(11))+(11),1) -> 35.9
C16: 5) | D16: =ROUND(RAND()*(19-(1))+(1),0)*5 -> 35 | E16: % | F16: of | G16: =ROUND(RAND()*(40-(11))+(11),0)*20 -> 600 | L16: 5) | N16: =D16/100*G16 -> 210 | U16: 5) | V16: =ROUND(RAND()*(19-(1))+(1),0)*5 -> 15 | W16: % | X16: of | Y16: =ROUND(RAND()*(40-(11))+(11),0)*20 -> 260 | AD16: 5) | AF16: =V16/100*Y16 -> 39 | AM16: 5) | AN16: =ROUND(RAND()*(19-(1))+(1),0)*5 -> 55 | AO16: % | AP16: of | AQ16: =ROUND(RAND()*(40-(11))+(11),0)*20 -> 700 | AV16: 5) | AX16: =AN16/100*AQ16 -> 385
C19: 6) | E19: =ROUND(RAND()*(8-(2))+(2),0) -> 7 | F19: of | G19: =ROUND(RAND()*(80-(11))+(11),1)*E20 -> 152 | L19: 6) | N19: =E19*G19/E20 -> 133 | U19: 6) | W19: =ROUND(RAND()*(8-(2))+(2),0) -> 3 | X19: of | Y19: =ROUND(RAND()*(80-(11))+(11),1)*W20 -> 50.4 | AD19: 6) | AF19: =W19*Y19/W20 -> 37.8 | AM19: 6) | AO19: =ROUND(RAND()*(8-(2))+(2),0) -> 8 | AP19: of | AQ19: =ROUND(RAND()*(80-(11))+(11),1)*AO20 -> 587.7 | AV19: 6) | AX19: =AO19*AQ19/AO20 -> 522.4
E20: =E19+1 -> 8 | W20: =W19+1 -> 4 | AO20: =AO19+1 -> 9
C23: Basic Calculations 4 | L23: Basic Calculations 4 | U23: Basic Calculations 5 | AD23: Basic Calculations 5 | AM23: Basic Calculations 6 | AV23: Basic Calculations 6
C25: 1) | E25: =ROUND(RAND()*(10-(3))+(3),0) -> 5 | F25: x | G25: =ROUND(RAND()*(30-(11))+(11),1) -> 13.2 | L25: 1) | N25: =E25*G25 -> 66 | U25: 1) | W25: =ROUND(RAND()*(10-(3))+(3),0) -> 9 | X25: x | Y25: =ROUND(RAND()*(30-(15))+(15),1) -> 24.5 | AD25: 1) | AF25: =W25*Y25 -> 220.5 | AM25: 1) | AO25: =ROUND(RAND()*(10-(3))+(3),0) -> 8 | AP25: x | AQ25: =ROUND(RAND()*(30-(15))+(15),1) -> 23.1 | AV25: 1) | AX25: =AO25*AQ25 -> 184.8
C28: 2) | D28: =ROUND(RAND()*(30-(11))+(11),1)*G28 -> 121.2 | F28: ÷ | G28: =ROUND(RAND()*(10-(3))+(3),0) -> 6 | L28: 2) | N28: =D28/G28 -> 20.2 | U28: 2) | V28: =ROUND(RAND()*(30-(11))+(11),1)*Y28 -> 107.6 | X28: ÷ | Y28: =ROUND(RAND()*(10-(3))+(3),0) -> 4 | AD28: 2) | AF28: =V28/Y28 -> 26.9 | AM28: 2) | AN28: =ROUND(RAND()*(30-(11))+(11),1)*AQ28 -> 205.8 | AP28: ÷ | AQ28: =ROUND(RAND()*(10-(3))+(3),0) -> 7 | AV28: 2) | AX28: =AN28/AQ28 -> 29.4
C31: 3) | E31: =ROUND(RAND()*(9-(2))+(2),0)*10 -> 50 | F31: x | G31: =ROUND(RAND()*(30-(11))+(11),1) -> 27.7 | L31: 3) | N31: =E31*G31 -> 1385 | U31: 3) | W31: =ROUND(RAND()*(9-(2))+(2),0)*10 -> 80 | X31: x | Y31: =ROUND(RAND()*(30-(11))+(11),2) -> 28.19 | AD31: 3) | AF31: =W31*Y31 -> 2255.2 | AM31: 3) | AO31: =ROUND(RAND()*(9-(2))+(2),0)*10 -> 90 | AP31: x | AQ31: =ROUND(RAND()*(30-(11))+(11),2) -> 24.14 | AV31: 3) | AX31: =AO31*AQ31 -> 2172.6
C34: 4) | D34: =G34*N34 -> 1950 | F34: ÷ | G34: =ROUND(RAND()*(9-(3))+(3),0)*10 -> 50 | L34: 4) | N34: =ROUND(RAND()*(50-(11))+(11),0) -> 39 | U34: 4) | V34: =Y34*AF34 -> 1785 | X34: ÷ | Y34: =ROUND(RAND()*(9-(3))+(3),0)*10 -> 50 | AD34: 4) | AF34: =ROUND(RAND()*(50-(11))+(11),1) -> 35.7 | AM34: 4) | AN34: =AQ34*AX34 -> 795 | AP34: ÷ | AQ34: =ROUND(RAND()*(9-(3))+(3),0)*10 -> 50 | AV34: 4) | AX34: =ROUND(RAND()*(50-(11))+(11),1) -> 15.9
C37: 5) | D37: =ROUND(RAND()*(19-(1))+(1),0)*5 -> 45 | E37: % | F37: of | G37: =ROUND(RAND()*(40-(11))+(11),0)*20 -> 420 | L37: 5) | N37: =D37/100*G37 -> 189 | U37: 5) | V37: =ROUND(RAND()*(19-(1))+(1),0)*5 -> 50 | W37: % | X37: of | Y37: =ROUND(RAND()*(40-(11))+(11),0)*20 -> 680 | AD37: 5) | AF37: =V37/100*Y37 -> 340 | AM37: 5) | AN37: =ROUND(RAND()*(19-(1))+(1),0)*5 -> 75 | AO37: % | AP37: of | AQ37: =ROUND(RAND()*(40-(11))+(11),0)*20 -> 640 | AV37: 5) | AX37: =AN37/100*AQ37 -> 480
C40: 6) | E40: =ROUND(RAND()*(8-(2))+(2),0) -> 5 | F40: of | G40: =ROUND(RAND()*(80-(11))+(11),1)*E41 -> 327.6 | L40: 6) | N40: =E40*G40/E41 -> 273 | U40: 6) | W40: =ROUND(RAND()*(8-(2))+(2),0) -> 6 | X40: of | Y40: =ROUND(RAND()*(80-(11))+(11),1)*W41 -> 242.2 | AD40: 6) | AF40: =W40*Y40/W41 -> 207.6 | AM40: 6) | AO40: =ROUND(RAND()*(8-(2))+(2),0) -> 4 | AP40: of | AQ40: =ROUND(RAND()*(80-(11))+(11),1)*AO41 -> 91 | AV40: 6) | AX40: =AO40*AQ40/AO41 -> 72.8
E41: =E40+1 -> 6 | W41: =W40+1 -> 7 | AO41: =AO40+1 -> 5

Sheet Integers
C2: Integers 1 | L2: Integers 1 | U2: Integers 2 | AD2: Integers 2 | AM2: Integers 3 | AV2: Integers 3
C4: 1) | E4: =ROUND(RAND()*(-5-(-20))+(-20),0) -> -19 | F4: + | G4: =ROUND(RAND()*(-30-(-11))+(-11),0) -> -29 | L4: 1) | N4: =E4+G4 -> -48 | U4: 1) | W4: =ROUND(RAND()*(-5-(-20))+(-20),0) -> -17 | X4: + | Y4: =ROUND(RAND()*(-30-(-11))+(-11),0) -> -17 | AD4: 1) | AF4: =W4+Y4 -> -34 | AM4: 1) | AO4: =ROUND(RAND()*(-5-(-20))+(-20),0) -> -15 | AP4: + | AQ4: =ROUND(RAND()*(-30-(-11))+(-11),0) -> -20 | AV4: 1) | AX4: =AO4+AQ4 -> -35
C7: 2) | E7: =ROUND(RAND()*(25-(8))+(8),0) -> 19 | F7: + | G7: =ROUND(RAND()*(-30-(-11))+(-11),0) -> -24 | L7: 2) | N7: =E7+G7 -> -5 | U7: 2) | W7: =ROUND(RAND()*(25-(8))+(8),0) -> 21 | X7: + | Y7: =ROUND(RAND()*(-30-(-11))+(-11),0) -> -21 | AD7: 2) | AF7: =W7+Y7 -> 0 | AM7: 2) | AO7: =ROUND(RAND()*(25-(8))+(8),0) -> 21 | AP7: + | AQ7: =ROUND(RAND()*(-30-(-11))+(-11),0) -> -11 | AV7: 2) | AX7: =AO7+AQ7 -> 10
C9: Find the difference between | U9: Find the difference between | AM9: Find the difference between
C10: 3) | E10: =ROUND(RAND()*(25-(8))+(8),0) -> 10 | F10: and | H10: =ROUND(RAND()*(-30-(-11))+(-11),0) -> -28 | L10: 3) | N10: =E10-H10 -> 38 | U10: 3) | W10: =ROUND(RAND()*(25-(8))+(8),0) -> 16 | X10: and | Z10: =ROUND(RAND()*(-30-(-11))+(-11),0) -> -25 | AD10: 3) | AF10: =W10-Z10 -> 41 | AM10: 3) | AO10: =ROUND(RAND()*(25-(8))+(8),0) -> 16 | AP10: and | AR10: =ROUND(RAND()*(-30-(-11))+(-11),0) -> -12 | AV10: 3) | AX10: =AO10-AR10 -> 28
C12: Find the difference between | U12: Find the difference between | AM12: Find the difference between
C13: 4) | E13: =ROUND(RAND()*((-25)-(-60))+(-60),0) -> -52 | F13: and | H13: =ROUND(RAND()*(60-(9))+(9),0) -> 14 | L13: 4) | N13: =H13-E13 -> 66 | U13: 4) | W13: =ROUND(RAND()*((-25)-(-60))+(-60),0) -> -37 | X13: and | Z13: =ROUND(RAND()*(60-(9))+(9),0) -> 41 | AD13: 4) | AF13: =Z13-W13 -> 78 | AM13: 4) | AO13: =ROUND(RAND()*((-25)-(-60))+(-60),0) -> -41 | AP13: and | AR13: =ROUND(RAND()*(60-(9))+(9),0) -> 39 | AV13: 4) | AX13: =AR13-AO13 -> 80
C16: 5) | E16: =ROUND(RAND()*(-5-(-20))+(-20),0) -> -18 | F16: - | G16: =ROUND(RAND()*(60-(7))+(7),0) -> 55 | L16: 5) | N16: =E16-G16 -> -73 | U16: 5) | W16: =ROUND(RAND()*(-5-(-20))+(-20),0) -> -8 | X16: - | Y16: =ROUND(RAND()*(60-(7))+(7),0) -> 53 | AD16: 5) | AF16: =W16-Y16 -> -61 | AM16: 5) | AO16: =ROUND(RAND()*(-5-(-20))+(-20),0) -> -7 | AP16: - | AQ16: =ROUND(RAND()*(60-(7))+(7),0) -> 20 | AV16: 5) | AX16: =AO16-AQ16 -> -27
C19: 6) | E19: =ROUND(RAND()*(-5-(-20))+(-20),0) -> -14 | F19: - | G19: =ROUND(RAND()*(60-(7))+(7),0) -> 21 | L19: 6) | N19: =E19-G19 -> -35 | U19: 6) | W19: =ROUND(RAND()*(-5-(-20))+(-20),0) -> -9 | X19: - | Y19: =ROUND(RAND()*(60-(7))+(7),0) -> 45 | AD19: 6) | AF19: =W19-Y19 -> -54 | AM19: 6) | AO19: =ROUND(RAND()*(-5-(-20))+(-20),0) -> -11 | AP19: - | AQ19: =ROUND(RAND()*(60-(7))+(7),0) -> 22 | AV19: 6) | AX19: =AO19-AQ19 -> -33
C23: Integers 4 | L23: Integers 4 | U23: Integers 5 | AD23: Integers 5 | AM23: Integers 6 | AV23: Integers 6
C25: 1) | E25: =ROUND(RAND()*(-5-(-20))+(-20),0) -> -10 | F25: + | G25: =ROUND(RAND()*(-30-(-11))+(-11),0) -> -23 | L25: 1) | N25: =E25+G25 -> -33 | U25: 1) | W25: =ROUND(RAND()*(-5-(-20))+(-20),0) -> -8 | X25: + | Y25: =ROUND(RAND()*(-30-(-11))+(-11),0) -> -14 | AD25: 1) | AF25: =W25+Y25 -> -22 | AM25: 1) | AO25: =ROUND(RAND()*(-5-(-20))+(-20),0) -> -10 | AP25: + | AQ25: =ROUND(RAND()*(-30-(-11))+(-11),0) -> -29 | AV25: 1) | AX25: =AO25+AQ25 -> -39
C28: 2) | E28: =ROUND(RAND()*(25-(8))+(8),0) -> 24 | F28: + | G28: =ROUND(RAND()*(-30-(-11))+(-11),0) -> -18 | L28: 2) | N28: =E28+G28 -> 6 | U28: 2) | W28: =ROUND(RAND()*(25-(8))+(8),0) -> 12 | X28: + | Y28: =ROUND(RAND()*(-30-(-11))+(-11),0) -> -22 | AD28: 2) | AF28: =W28+Y28 -> -10 | AM28: 2) | AO28: =ROUND(RAND()*(25-(8))+(8),0) -> 13 | AP28: + | AQ28: =ROUND(RAND()*(-30-(-11))+(-11),0) -> -12 | AV28: 2) | AX28: =AO28+AQ28 -> 1
C30: Find the difference between | U30: Find the difference between | AM30: Find the difference between
C31: 3) | E31: =ROUND(RAND()*(25-(8))+(8),0) -> 23 | F31: and | H31: =ROUND(RAND()*(-30-(-11))+(-11),0) -> -24 | L31: 3) | N31: =E31-H31 -> 47 | U31: 3) | W31: =ROUND(RAND()*(25-(8))+(8),0) -> 23 | X31: and | Z31: =ROUND(RAND()*(-30-(-11))+(-11),0) -> -25 | AD31: 3) | AF31: =W31-Z31 -> 48 | AM31: 3) | AO31: =ROUND(RAND()*(25-(8))+(8),0) -> 8 | AP31: and | AR31: =ROUND(RAND()*(-30-(-11))+(-11),0) -> -14 | AV31: 3) | AX31: =AO31-AR31 -> 22
C33: Find the difference between | U33: Find the difference between | AM33: Find the difference between
C34: 4) | E34: =ROUND(RAND()*((-25)-(-60))+(-60),0) -> -58 | F34: and | H34: =ROUND(RAND()*(60-(9))+(9),0) -> 47 | L34: 4) | N34: =H34-E34 -> 105 | U34: 4) | W34: =ROUND(RAND()*((-25)-(-60))+(-60),0) -> -60 | X34: and | Z34: =ROUND(RAND()*(60-(9))+(9),0) -> 42 | AD34: 4) | AF34: =Z34-W34 -> 102 | AM34: 4) | AO34: =ROUND(RAND()*((-25)-(-60))+(-60),0) -> -50 | AP34: and | AR34: =ROUND(RAND()*(60-(9))+(9),0) -> 28 | AV34: 4) | AX34: =AR34-AO34 -> 78
C37: 5) | E37: =ROUND(RAND()*(-5-(-20))+(-20),0) -> -12 | F37: - | G37: =ROUND(RAND()*(60-(7))+(7),0) -> 45 | L37: 5) | N37: =E37-G37 -> -57 | U37: 5) | W37: =ROUND(RAND()*(-5-(-20))+(-20),0) -> -16 | X37: - | Y37: =ROUND(RAND()*(60-(7))+(7),0) -> 37 | AD37: 5) | AF37: =W37-Y37 -> -53 | AM37: 5) | AO37: =ROUND(RAND()*(-5-(-20))+(-20),0) -> -8 | AP37: - | AQ37: =ROUND(RAND()*(60-(7))+(7),0) -> 12 | AV37: 5) | AX37: =AO37-AQ37 -> -20
C40: 6) | E40: =ROUND(RAND()*(-5-(-20))+(-20),0) -> -16 | F40: - | G40: =ROUND(RAND()*(60-(7))+(7),0) -> 50 | L40: 6) | N40: =E40-G40 -> -66 | U40: 6) | W40: =ROUND(RAND()*(-5-(-20))+(-20),0) -> -9 | X40: - | Y40: =ROUND(RAND()*(60-(7))+(7),0) -> 8 | AD40: 6) | AF40: =W40-Y40 -> -17 | AM40: 6) | AO40: =ROUND(RAND()*(-5-(-20))+(-20),0) -> -9 | AP40: - | AQ40: =ROUND(RAND()*(60-(7))+(7),0) -> 36 | AV40: 6) | AX40: =AO40-AQ40 -> -45

Sheet Solving_Equations
C2: Solving Equations 1 | L2: Solving Equations 1 | U2: Solving Equations 2 | AD2: Solving Equations 2 | AM2: Solving Equations 3 | AV2: Solving Equations 3
C4: 1) | E4: =CHAR(RAND()*(122-113)+113) -> v | F4: + | G4: =ROUND(RAND()*(30-(5))+(5),0) -> 18 | H4: = | I4: =N4+G4 -> 26 | L4: 1) | N4: =ROUND(RAND()*(10-(1))+(1),0) -> 8 | U4: 1) | W4: =CHAR(RAND()*(122-113)+113) -> x | X4: + | Y4: =ROUND(RAND()*(30-(5))+(5),0) -> 7 | Z4: = | AA4: =AF4+Y4 -> 12 | AD4: 1) | AF4: =ROUND(RAND()*(10-(1))+(1),0) -> 5 | AM4: 1) | AO4: =CHAR(RAND()*(122-113)+113) -> s | AP4: + | AQ4: =ROUND(RAND()*(30-(5))+(5),0) -> 15 | AR4: = | AS4: =AX4+AQ4 -> 16 | AV4: 1) | AX4: =ROUND(RAND()*(10-(1))+(1),0) -> 1
C7: 2) | E7: =CHAR(RAND()*(122-113)+113) -> t | F7: - | G7: =ROUND(RAND()*(19-(5))+(5),0) -> 12 | H7: = | I7: =N7-G7 -> -4 | L7: 2) | N7: =ROUND(RAND()*(10-(1))+(1),0) -> 8 | U7: 2) | W7: =CHAR(RAND()*(122-113)+113) -> y | X7: - | Y7: =ROUND(RAND()*(19-(5))+(5),0) -> 6 | Z7: = | AA7: =AF7-Y7 -> 4 | AD7: 2) | AF7: =ROUND(RAND()*(10-(1))+(1),0) -> 10 | AM7: 2) | AO7: =CHAR(RAND()*(122-113)+113) -> w | AP7: - | AQ7: =ROUND(RAND()*(19-(5))+(5),0) -> 9 | AR7: = | AS7: =AX7-AQ7 -> -5 | AV7: 2) | AX7: =ROUND(RAND()*(10-(1))+(1),0) -> 4
C10: 3) | F10: =ROUND(RAND()*((10)-(2))+(2),0) -> 6 | G10: =CHAR(RAND()*(105-97)+97) -> c | H10: = | I10: =F10*N10 -> 42 | L10: 3) | N10: =ROUND(RAND()*(20-(1))+(1),0) -> 7 | U10: 3) | X10: =ROUND(RAND()*((10)-(2))+(2),0) -> 3 | Y10: =CHAR(RAND()*(105-97)+97) -> d | Z10: = | AA10: =X10*AF10 -> 6 | AD10: 3) | AF10: =ROUND(RAND()*(20-(1))+(1),0) -> 2 | AM10: 3) | AP10: =ROUND(RAND()*((10)-(2))+(2),0) -> 5 | AQ10: =CHAR(RAND()*(105-97)+97) -> h | AR10: = | AS10: =AP10*AX10 -> 65 | AV10: 3) | AX10: =ROUND(RAND()*(20-(1))+(1),0) -> 13
C13: 4) | F13: =ROUND(RAND()*((9)-(2))+(2),0)*10 -> 50 | G13: =CHAR(RAND()*(105-97)+97) -> d | H13: = | I13: =F13*N13 -> 250 | L13: 4) | N13: =ROUND(RAND()*(10-(1))+(1),0) -> 5 | U13: 4) | X13: =ROUND(RAND()*((9)-(2))+(2),0)*10 -> 60 | Y13: =CHAR(RAND()*(105-97)+97) -> f | Z13: = | AA13: =X13*AF13 -> 60 | AD13: 4) | AF13: =ROUND(RAND()*(10-(1))+(1),0) -> 1 | AM13: 4) | AP13: =ROUND(RAND()*((9)-(2))+(2),0)*10 -> 20 | AQ13: =CHAR(RAND()*(105-97)+97) -> h | AR13: = | AS13: =AP13*AX13 -> 120 | AV13: 4) | AX13: =ROUND(RAND()*(10-(1))+(1),0) -> 6
C16: 5) | D16: =ROUND(RAND()*(5-(2))+(2),0) -> 5 | E16: =CHAR(RAND()*(122-113)+113) -> x | F16: + | G16: =ROUND(RAND()*(10-(2))+(2),0) -> 6 | H16: = | I16: =D16*N16+G16 -> 46 | L16: 5) | N16: =ROUND(RAND()*(20-(1))+(1),0) -> 8 | U16: 5) | V16: =ROUND(RAND()*(5-(2))+(2),0) -> 4 | W16: =CHAR(RAND()*(122-113)+113) -> q | X16: + | Y16: =ROUND(RAND()*(10-(2))+(2),0) -> 2 | Z16: = | AA16: =V16*AF16+Y16 -> 22 | AD16: 5) | AF16: =ROUND(RAND()*(20-(1))+(1),0) -> 5 | AM16: 5) | AN16: =ROUND(RAND()*(5-(2))+(2),0) -> 3 | AO16: =CHAR(RAND()*(122-113)+113) -> s | AP16: + | AQ16: =ROUND(RAND()*(10-(2))+(2),0) -> 7 | AR16: = | AS16: =AN16*AX16+AQ16 -> 34 | AV16: 5) | AX16: =ROUND(RAND()*(20-(1))+(1),0) -> 9
C19: 6) | D19: =ROUND(RAND()*(3-(2))+(2),0) -> 2 | E19: =CHAR(RAND()*(105-97)+97) -> c | F19: - | G19: =ROUND(RAND()*(4-(1))+(1),0) -> 2 | H19: = | I19: =D19*N19-G19 -> 16 | L19: 6) | N19: =ROUND(RAND()*(20-(1))+(1),0) -> 9 | U19: 6) | V19: =ROUND(RAND()*(3-(2))+(2),0) -> 2 | W19: =CHAR(RAND()*(105-97)+97) -> d | X19: - | Y19: =ROUND(RAND()*(4-(1))+(1),0) -> 3 | Z19: = | AA19: =V19*AF19-Y19 -> 3 | AD19: 6) | AF19: =ROUND(RAND()*(20-(1))+(1),0) -> 3 | AM19: 6) | AN19: =ROUND(RAND()*(3-(2))+(2),0) -> 3 | AO19: =CHAR(RAND()*(105-97)+97) -> g | AP19: - | AQ19: =ROUND(RAND()*(4-(1))+(1),0) -> 1 | AR19: = | AS19: =AN19*AX19-AQ19 -> 14 | AV19: 6) | AX19: =ROUND(RAND()*(20-(1))+(1),0) -> 5
C23: Solving Equations 4 | L23: Solving Equations 4 | U23: Solving Equations 5 | AD23: Solving Equations 5 | AM23: Solving Equations 6 | AV23: Solving Equations 6
C25: 1) | E25: =CHAR(RAND()*(122-113)+113) -> v | F25: + | G25: =ROUND(RAND()*(30-(5))+(5),0) -> 18 | H25: = | I25: =N25+G25 -> 20 | L25: 1) | N25: =ROUND(RAND()*(10-(1))+(1),0) -> 2 | U25: 1) | W25: =CHAR(RAND()*(122-113)+113) -> v | X25: + | Y25: =ROUND(RAND()*(30-(5))+(5),0) -> 14 | Z25: = | AA25: =AF25+Y25 -> 16 | AD25: 1) | AF25: =ROUND(RAND()*(10-(1))+(1),0) -> 2 | AM25: 1) | AO25: =CHAR(RAND()*(122-113)+113) -> t | AP25: + | AQ25: =ROUND(RAND()*(30-(5))+(5),0) -> 10 | AR25: = | AS25: =AX25+AQ25 -> 17 | AV25: 1) | AX25: =ROUND(RAND()*(10-(1))+(1),0) -> 7
C28: 2) | E28: =CHAR(RAND()*(122-113)+113) -> t | F28: - | G28: =ROUND(RAND()*(19-(5))+(5),0) -> 13 | H28: = | I28: =N28-G28 -> -8 | L28: 2) | N28: =ROUND(RAND()*(10-(1))+(1),0) -> 5 | U28: 2) | W28: =CHAR(RAND()*(122-113)+113) -> s | X28: - | Y28: =ROUND(RAND()*(19-(5))+(5),0) -> 11 | Z28: = | AA28: =AF28-Y28 -> -7 | AD28: 2) | AF28: =ROUND(RAND()*(10-(1))+(1),0) -> 4 | AM28: 2) | AO28: =CHAR(RAND()*(122-113)+113) -> y | AP28: - | AQ28: =ROUND(RAND()*(19-(5))+(5),0) -> 12 | AR28: = | AS28: =AX28-AQ28 -> -3 | AV28: 2) | AX28: =ROUND(RAND()*(10-(1))+(1),0) -> 9
C31: 3) | F31: =ROUND(RAND()*((10)-(2))+(2),0) -> 8 | G31: =CHAR(RAND()*(105-97)+97) -> b | H31: = | I31: =F31*N31 -> 136 | L31: 3) | N31: =ROUND(RAND()*(20-(1))+(1),0) -> 17 | U31: 3) | X31: =ROUND(RAND()*((10)-(2))+(2),0) -> 4 | Y31: =CHAR(RAND()*(105-97)+97) -> d | Z31: = | AA31: =X31*AF31 -> 76 | AD31: 3) | AF31: =ROUND(RAND()*(20-(1))+(1),0) -> 19 | AM31: 3) | AP31: =ROUND(RAND()*((10)-(2))+(2),0) -> 8 | AQ31: =CHAR(RAND()*(105-97)+97) -> a | AR31: = | AS31: =AP31*AX31 -> 120 | AV31: 3) | AX31: =ROUND(RAND()*(20-(1))+(1),0) -> 15
C34: 4) | F34: =ROUND(RAND()*((9)-(2))+(2),0)*10 -> 40 | G34: =CHAR(RAND()*(105-97)+97) -> h | H34: = | I34: =F34*N34 -> 80 | L34: 4) | N34: =ROUND(RAND()*(10-(1))+(1),0) -> 2 | U34: 4) | X34: =ROUND(RAND()*((9)-(2))+(2),0)*10 -> 80 | Y34: =CHAR(RAND()*(105-97)+97) -> h | Z34: = | AA34: =X34*AF34 -> 560 | AD34: 4) | AF34: =ROUND(RAND()*(10-(1))+(1),0) -> 7 | AM34: 4) | AP34: =ROUND(RAND()*((9)-(2))+(2),0)*10 -> 40 | AQ34: =CHAR(RAND()*(105-97)+97) -> c | AR34: = | AS34: =AP34*AX34 -> 200 | AV34: 4) | AX34: =ROUND(RAND()*(10-(1))+(1),0) -> 5
C37: 5) | D37: =ROUND(RAND()*(5-(2))+(2),0) -> 2 | E37: =CHAR(RAND()*(122-113)+113) -> t | F37: + | G37: =ROUND(RAND()*(10-(2))+(2),0) -> 4 | H37: = | I37: =D37*N37+G37 -> 10 | L37: 5) | N37: =ROUND(RAND()*(20-(1))+(1),0) -> 3 | U37: 5) | V37: =ROUND(RAND()*(5-(2))+(2),0) -> 2 | W37: =CHAR(RAND()*(122-113)+113) -> y | X37: + | Y37: =ROUND(RAND()*(10-(2))+(2),0) -> 6 | Z37: = | AA37: =V37*AF37+Y37 -> 38 | AD37: 5) | AF37: =ROUND(RAND()*(20-(1))+(1),0) -> 16 | AM37: 5) | AN37: =ROUND(RAND()*(5-(2))+(2),0) -> 4 | AO37: =CHAR(RAND()*(122-113)+113) -> w | AP37: + | AQ37: =ROUND(RAND()*(10-(2))+(2),0) -> 8 | AR37: = | AS37: =AN37*AX37+AQ37 -> 72 | AV37: 5) | AX37: =ROUND(RAND()*(20-(1))+(1),0) -> 16
C40: 6) | D40: =ROUND(RAND()*(3-(2))+(2),0) -> 2 | E40: =CHAR(RAND()*(105-97)+97) -> c | F40: - | G40: =ROUND(RAND()*(4-(1))+(1),0) -> 4 | H40: = | I40: =D40*N40-G40 -> 4 | L40: 6) | N40: =ROUND(RAND()*(20-(1))+(1),0) -> 4 | U40: 6) | V40: =ROUND(RAND()*(3-(2))+(2),0) -> 3 | W40: =CHAR(RAND()*(105-97)+97) -> a | X40: - | Y40: =ROUND(RAND()*(4-(1))+(1),0) -> 2 | Z40: = | AA40: =V40*AF40-Y40 -> 40 | AD40: 6) | AF40: =ROUND(RAND()*(20-(1))+(1),0) -> 14 | AM40: 6) | AN40: =ROUND(RAND()*(3-(2))+(2),0) -> 3 | AO40: =CHAR(RAND()*(105-97)+97) -> c | AP40: - | AQ40: =ROUND(RAND()*(4-(1))+(1),0) -> 2 | AR40: = | AS40: =AN40*AX40-AQ40 -> 13 | AV40: 6) | AX40: =ROUND(RAND()*(20-(1))+(1),0) -> 5

Sheet Statistics
C2: Statistics 1 | L2: Statistics 1 | U2: Statistics 2 | AD2: Statistics 2 | AM2: Statistics 3 | AV2: Statistics 3
C3: ="1) Find the range for this set of data "&J3&" , "&J4&" , "&J5&" , "&K3&" , "&K4&" , "&K5 -> 1) Find the range for this set of data 18 , 27 , 28 , 29 , 17 , 24 | J3: =ROUND(RAND()*(30-15)+15,0) -> 18 | K3: 29 | U3: ="1) Find the range for this set of data "&AB3&" , "&AB4&" , "&AB5&" , "&AC3&" , "&AC4&" , "&AC5 -> 1) Find the range for this set of data 20 , 22 , 15 , 15 , 27 , 24 | AB3: =ROUND(RAND()*(30-15)+15,0) -> 20 | AC3: 15 | AM3: ="1) Find the range for this set of data "&AT3&" , "&AT4&" , "&AT5&" , "&AU3&" , "&AU4&" , "&AU5 -> 1) Find the range for this set of data 20 , 17 , 28 , 16 , 19 , 20 | AT3: =ROUND(RAND()*(30-15)+15,0) -> 20 | AU3: 16
J4: 27 | K4: 17 | L4: 1) | N4: =(LARGE(J3:K5,1)-SMALL(J3:K5,1)) -> 12 | AB4: 22 | AC4: 27 | AD4: 1) | AF4: =(LARGE(AB3:AC5,1)-SMALL(AB3:AC5,1)) -> 12 | AT4: 17 | AU4: 19 | AV4: 1) | AX4: =(LARGE(AT3:AU5,1)-SMALL(AT3:AU5,1)) -> 12
J5: 28 | K5: 24 | AB5: 15 | AC5: 24 | AT5: 28 | AU5: 20
C6: ="2) Find the range for this set of data "&J6&", "&J7&", "&J8&", "&K6&", "&K7&", "&K8 -> 2) Find the range for this set of data 6.7, 7.3, 8.2, 5, 7.1, 5.4 | J6: =ROUND(RAND()*(9-1)+1,1) -> 6.7 | K6: 5 | U6: ="2) Find the range for this set of data "&AB6&", "&AB7&", "&AB8&", "&AC6&", "&AC7&", "&AC8 -> 2) Find the range for this set of data 5.7, 1.9, 2.3, 1.2, 4.8, 1.5 | AB6: =ROUND(RAND()*(9-1)+1,1) -> 5.7 | AC6: 1.2 | AM6: ="2) Find the range for this set of data "&AT6&", "&AT7&", "&AT8&", "&AU6&", "&AU7&", "&AU8 -> 2) Find the range for this set of data 3.4, 3.3, 7.9, 1.5, 4.5, 6.9 | AT6: =ROUND(RAND()*(9-1)+1,1) -> 3.4 | AU6: 1.5
J7: 7.3 | K7: 7.1 | L7: 2) | N7: =(LARGE(J6:K8,1)-SMALL(J6:K8,1)) -> 3.2 | AB7: 1.9 | AC7: 4.8 | AD7: 2) | AF7: =(LARGE(AB6:AC8,1)-SMALL(AB6:AC8,1)) -> 4.5 | AT7: 3.3 | AU7: 4.5 | AV7: 2) | AX7: =(LARGE(AT6:AU8,1)-SMALL(AT6:AU8,1)) -> 6.4
J8: 8.2 | K8: 5.4 | AB8: 2.3 | AC8: 1.5 | AT8: 7.9 | AU8: 6.9
C9: ="3) Find the mean for this set of data "&J9&" , "&J10&" , "&J11&" , "&K9&" , "&K10&" (to 1 d.p)" -> 3) Find the mean for this set of data 6 , 8 , 7 , 7 , 2 (to 1 d.p) | J9: =ROUND(RAND()*(9-1)+1,0) -> 6 | K9: =ROUND(RAND()*(9-1)+1,0) -> 7 | U9: ="3) Find the mean for this set of data "&AB9&" , "&AB10&" , "&AB11&" , "&AC9&" , "&AC10&" (to 1 d.p)" -> 3) Find the mean for this set of data 8 , 2 , 9 , 9 , 9 (to 1 d.p) | AB9: =ROUND(RAND()*(9-1)+1,0) -> 8 | AC9: =ROUND(RAND()*(9-1)+1,0) -> 9 | AM9: ="3) Find the mean for this set of data "&AT9&" , "&AT10&" , "&AT11&" , "&AU9&" , "&AU10&" (to 1 d.p)" -> 3) Find the mean for this set of data 2 , 2 , 2 , 6 , 4 (to 1 d.p) | AT9: =ROUND(RAND()*(9-1)+1,0) -> 2 | AU9: =ROUND(RAND()*(9-1)+1,0) -> 6
J10: =ROUND(RAND()*(9-1)+1,0) -> 8 | K10: =ROUND(RAND()*(9-1)+1,0) -> 2 | L10: 3) | N10: =ROUND(AVERAGE(J9:J11,K9:K10),1) -> 6 | AB10: =ROUND(RAND()*(9-1)+1,0) -> 2 | AC10: =ROUND(RAND()*(9-1)+1,0) -> 9 | AD10: 3) | AF10: =ROUND(AVERAGE(AB9:AB11,AC9:AC10),1) -> 7.4 | AT10: =ROUND(RAND()*(9-1)+1,0) -> 2 | AU10: =ROUND(RAND()*(9-1)+1,0) -> 4 | AV10: 3) | AX10: =ROUND(AVERAGE(AT9:AT11,AU9:AU10),1) -> 3.2
J11: =ROUND(RAND()*(9-1)+1,0) -> 7 | AB11: =ROUND(RAND()*(9-1)+1,0) -> 9 | AT11: =ROUND(RAND()*(9-1)+1,0) -> 2
C12: ="4) The mean age for two people is "&J13&" . If one is "&J12&" years old. What is the age of the other." -> 4) The mean age for two people is 43 . If one is 22 years old. What is the age of the other. | J12: =ROUND(RAND()*(50-18)+18,0) -> 22 | U12: ="4) The mean age for two people is "&AB13&" . If one is "&AB12&" years old. What is the age of the other." -> 4) The mean age for two people is 38 . If one is 31 years old. What is the age of the other. | AB12: =ROUND(RAND()*(50-18)+18,0) -> 31 | AM12: ="4) The mean age for two people is "&AT13&" . If one is "&AT12&" years old. What is the age of the other." -> 4) The mean age for two people is 53 . If one is 32 years old. What is the age of the other. | AT12: =ROUND(RAND()*(50-18)+18,0) -> 32
J13: =ROUND(RAND()*(53-30)+30,0) -> 43 | L13: 4) | N13: =J13*2-J12 -> 64 | AB13: =ROUND(RAND()*(53-30)+30,0) -> 38 | AD13: 4) | AF13: =AB13*2-AB12 -> 45 | AT13: =ROUND(RAND()*(53-30)+30,0) -> 53 | AV13: 4) | AX13: =AT13*2-AT12 -> 74
C15: ="5) The mean age for three people is "&J17&" . If one is "&J15&" years old and one is "&J16&" years old. What is the age of the other." -> 5) The mean age for three people is 49 . If one is 60 years old and one is 54 years old. What is the age of the other. | J15: =3*ROUND(RAND()*(20-10)+10,0) -> 60 | U15: ="5) The mean age for three people is "&AB17&" . If one is "&AB15&" years old and one is "&AB16&" years old. What is the age of the other." -> 5) The mean age for three people is 54 . If one is 54 years old and one is 57 years old. What is the age of the other. | AB15: =3*ROUND(RAND()*(20-10)+10,0) -> 54 | AM15: ="5) The mean age for three people is "&AT17&" . If one is "&AT15&" years old and one is "&AT16&" years old. What is the age of the other." -> 5) The mean age for three people is 44 . If one is 48 years old and one is 57 years old. What is the age of the other. | AT15: =3*ROUND(RAND()*(20-10)+10,0) -> 48
J16: =3*ROUND(RAND()*(20-10)+10,0) -> 54 | AB16: =3*ROUND(RAND()*(20-10)+10,0) -> 57 | AT16: =3*ROUND(RAND()*(20-10)+10,0) -> 57
J17: =ROUND(RAND()*(60-40)+40,0) -> 49 | L17: 5) | N17: =J17*3-(J15+J16) -> 33 | AB17: =ROUND(RAND()*(60-40)+40,0) -> 54 | AD17: 5) | AF17: =AB17*3-(AB15+AB16) -> 51 | AT17: =ROUND(RAND()*(60-40)+40,0) -> 44 | AV17: 5) | AX17: =AT17*3-(AT15+AT16) -> 27
C22: Statistics 4 | L22: Statistics 4 | U22: Statistics 5 | AD22: Statistics 5 | AM22: Statistics 6 | AV22: Statistics 6
C23: ="1) Find the range for this set of data "&J23&" , "&J24&" , "&J25&" , "&K23&" , "&K24&" , "&K25 -> 1) Find the range for this set of data 25 , 17 , 21 , 28 , 23 , 18 | J23: =ROUND(RAND()*(30-15)+15,0) -> 25 | K23: 28 | U23: ="1) Find the range for this set of data "&AB23&" , "&AB24&" , "&AB25&" , "&AC23&" , "&AC24&" , "&AC25 -> 1) Find the range for this set of data 19 , 29 , 28 , 17 , 23 , 28 | AB23: =ROUND(RAND()*(30-15)+15,0) -> 19 | AC23: 17 | AM23: ="1) Find the range for this set of data "&AT23&" , "&AT24&" , "&AT25&" , "&AU23&" , "&AU24&" , "&AU25 -> 1) Find the range for this set of data 19 , 16 , 22 , 23 , 26 , 28 | AT23: =ROUND(RAND()*(30-15)+15,0) -> 19 | AU23: 23
J24: 17 | K24: 23 | L24: 1) | N24: =(LARGE(J23:K25,1)-SMALL(J23:K25,1)) -> 11 | AB24: 29 | AC24: 23 | AD24: 1) | AF24: =(LARGE(AB23:AC25,1)-SMALL(AB23:AC25,1)) -> 12 | AT24: 16 | AU24: 26 | AV24: 1) | AX24: =(LARGE(AT23:AU25,1)-SMALL(AT23:AU25,1)) -> 12
J25: 21 | K25: 18 | AB25: 28 | AC25: 28 | AT25: 22 | AU25: 28
C26: ="2) Find the range for this set of data "&J26&", "&J27&", "&J28&", "&K26&", "&K27&", "&K28 -> 2) Find the range for this set of data 6, 1.6, 4.8, 5.2, 7.7, 5.5 | J26: =ROUND(RAND()*(9-1)+1,1) -> 6 | K26: 5.2 | U26: ="2) Find the range for this set of data "&AB26&", "&AB27&", "&AB28&", "&AC26&", "&AC27&", "&AC28 -> 2) Find the range for this set of data 1.5, 4.8, 4.6, 2.9, 2.8, 1.5 | AB26: =ROUND(RAND()*(9-1)+1,1) -> 1.5 | AC26: 2.9 | AM26: ="2) Find the range for this set of data "&AT26&", "&AT27&", "&AT28&", "&AU26&", "&AU27&", "&AU28 -> 2) Find the range for this set of data 8.4, 8.6, 3.3, 4.1, 9, 5.4 | AT26: =ROUND(RAND()*(9-1)+1,1) -> 8.4 | AU26: 4.1
J27: 1.6 | K27: 7.7 | L27: 2) | N27: =(LARGE(J26:K28,1)-SMALL(J26:K28,1)) -> 6.1 | AB27: 4.8 | AC27: 2.8 | AD27: 2) | AF27: =(LARGE(AB26:AC28,1)-SMALL(AB26:AC28,1)) -> 3.3 | AT27: 8.6 | AU27: 9 | AV27: 2) | AX27: =(LARGE(AT26:AU28,1)-SMALL(AT26:AU28,1)) -> 5.7
J28: 4.8 | K28: 5.5 | AB28: 4.6 | AC28: 1.5 | AT28: 3.3 | AU28: 5.4
C29: ="3) Find the mean for this set of data "&J29&" , "&J30&" , "&J31&" , "&K29&" , "&K30&" (to 1 d.p)" -> 3) Find the mean for this set of data 7 , 5 , 8 , 1 , 8 (to 1 d.p) | J29: =ROUND(RAND()*(9-1)+1,0) -> 7 | K29: =ROUND(RAND()*(9-1)+1,0) -> 1 | U29: ="3) Find the mean for this set of data "&AB29&" , "&AB30&" , "&AB31&" , "&AC29&" , "&AC30&" (to 1 d.p)" -> 3) Find the mean for this set of data 2 , 2 , 5 , 6 , 3 (to 1 d.p) | AB29: =ROUND(RAND()*(9-1)+1,0) -> 2 | AC29: =ROUND(RAND()*(9-1)+1,0) -> 6 | AM29: ="3) Find the mean for this set of data "&AT29&" , "&AT30&" , "&AT31&" , "&AU29&" , "&AU30&" (to 1 d.p)" -> 3) Find the mean for this set of data 4 , 6 , 7 , 6 , 1 (to 1 d.p) | AT29: =ROUND(RAND()*(9-1)+1,0) -> 4 | AU29: =ROUND(RAND()*(9-1)+1,0) -> 6
J30: =ROUND(RAND()*(9-1)+1,0) -> 5 | K30: =ROUND(RAND()*(9-1)+1,0) -> 8 | L30: 3) | N30: =ROUND(AVERAGE(J29:J31,K29:K30),1) -> 5.8 | AB30: =ROUND(RAND()*(9-1)+1,0) -> 2 | AC30: =ROUND(RAND()*(9-1)+1,0) -> 3 | AD30: 3) | AF30: =ROUND(AVERAGE(AB29:AB31,AC29:AC30),1) -> 3.6 | AT30: =ROUND(RAND()*(9-1)+1,0) -> 6 | AU30: =ROUND(RAND()*(9-1)+1,0) -> 1 | AV30: 3) | AX30: =ROUND(AVERAGE(AT29:AT31,AU29:AU30),1) -> 4.8
J31: =ROUND(RAND()*(9-1)+1,0) -> 8 | AB31: =ROUND(RAND()*(9-1)+1,0) -> 5 | AT31: =ROUND(RAND()*(9-1)+1,0) -> 7
C32: ="4) The mean age for two people is "&J33&" . If one is "&J32&" years old. What is the age of the other." -> 4) The mean age for two people is 34 . If one is 33 years old. What is the age of the other. | J32: =ROUND(RAND()*(50-18)+18,0) -> 33 | U32: ="4) The mean age for two people is "&AB33&" . If one is "&AB32&" years old. What is the age of the other." -> 4) The mean age for two people is 38 . If one is 18 years old. What is the age of the other. | AB32: =ROUND(RAND()*(50-18)+18,0) -> 18 | AM32: ="4) The mean age for two people is "&AT33&" . If one is "&AT32&" years old. What is the age of the other." -> 4) The mean age for two people is 30 . If one is 41 years old. What is the age of the other. | AT32: =ROUND(RAND()*(50-18)+18,0) -> 41
J33: =ROUND(RAND()*(53-30)+30,0) -> 34 | L33: 4) | N33: =J33*2-J32 -> 35 | AB33: =ROUND(RAND()*(53-30)+30,0) -> 38 | AD33: 4) | AF33: =AB33*2-AB32 -> 58 | AT33: =ROUND(RAND()*(53-30)+30,0) -> 30 | AV33: 4) | AX33: =AT33*2-AT32 -> 19
C35: ="5) The mean age for three people is "&J37&" . If one is "&J35&" years old and one is "&J36&" years old. What is the age of the other." -> 5) The mean age for three people is 51 . If one is 30 years old and one is 57 years old. What is the age of the other. | J35: =3*ROUND(RAND()*(20-10)+10,0) -> 30 | U35: ="5) The mean age for three people is "&AB37&" . If one is "&AB35&" years old and one is "&AB36&" years old. What is the age of the other." -> 5) The mean age for three people is 53 . If one is 39 years old and one is 57 years old. What is the age of the other. | AB35: =3*ROUND(RAND()*(20-10)+10,0) -> 39 | AM35: ="5) The mean age for three people is "&AT37&" . If one is "&AT35&" years old and one is "&AT36&" years old. What is the age of the other." -> 5) The mean age for three people is 49 . If one is 57 years old and one is 42 years old. What is the age of the other. | AT35: =3*ROUND(RAND()*(20-10)+10,0) -> 57
J36: =3*ROUND(RAND()*(20-10)+10,0) -> 57 | AB36: =3*ROUND(RAND()*(20-10)+10,0) -> 57 | AT36: =3*ROUND(RAND()*(20-10)+10,0) -> 42
J37: =ROUND(RAND()*(60-40)+40,0) -> 51 | L37: 5) | N37: =J37*3-(J35+J36) -> 66 | AB37: =ROUND(RAND()*(60-40)+40,0) -> 53 | AD37: 5) | AF37: =AB37*3-(AB35+AB36) -> 63 | AT37: =ROUND(RAND()*(60-40)+40,0) -> 49 | AV37: 5) | AX37: =AT37*3-(AT35+AT36) -> 48

Sheet Length
C2: Conversions 1 | L2: Conversions 1 | U2: Conversions 2 | AD2: Conversions 2 | AM2: Conversions 3 | AV2: Conversions 3
C3: metres to centimetres | U3: metres to centimetres | AM3: metres to centimetres
C4: 1) | E4: =ROUND(RAND()*(900-(0.1))+(0.1),1) -> 831.8 | L4: 1) | N4: =E4*100 -> 83180 | Q4: cm | U4: 1) | W4: =ROUND(RAND()*(900-(0.1))+(0.1),1) -> 801.6 | AD4: 1) | AF4: =W4*100 -> 80160 | AI4: cm | AM4: 1) | AO4: =ROUND(RAND()*(900-(0.1))+(0.1),1) -> 137 | AV4: 1) | AX4: =AO4*100 -> 13700 | BA4: cm
C6: kilometres to metres | U6: kilometres to metres | AM6: kilometres to metres
C7: 2) | D7: =ROUND(RAND()*(30-(11))+(11),1) -> 25.8 | L7: 2) | N7: =D7*1000 -> 25800 | Q7: m | U7: 2) | V7: =ROUND(RAND()*(30-(11))+(11),1) -> 20.6 | AD7: 2) | AF7: =V7*1000 -> 20600 | AI7: m | AM7: 2) | AN7: =ROUND(RAND()*(30-(11))+(11),1) -> 18.6 | AV7: 2) | AX7: =AN7*1000 -> 18600 | BA7: m
C9: centimetres to metres | U9: centimetres to metres | AM9: centimetres to metres
C10: 3) | D10: =ROUND(RAND()*(90-(2))+(2),0)*10 -> 240 | L10: 3) | N10: =D10/100 -> 2.4 | Q10: m | U10: 3) | V10: =ROUND(RAND()*(90-(2))+(2),0)*10 -> 840 | AD10: 3) | AF10: =V10/100 -> 8.4 | AI10: m | AM10: 3) | AN10: =ROUND(RAND()*(90-(2))+(2),0)*10 -> 210 | AV10: 3) | AX10: =AN10/100 -> 2.1 | BA10: m
C12: metres to kilometres | U12: metres to kilometres | AM12: metres to kilometres
C13: 4) | D13: =ROUND(RAND()*(900-(2))+(2),0)*10 -> 1050 | L13: 4) | N13: =D13/1000 -> 1.05 | Q13: km | U13: 4) | V13: =ROUND(RAND()*(900-(2))+(2),0)*10 -> 950 | AD13: 4) | AF13: =V13/1000 -> 0.95 | AI13: km | AM13: 4) | AN13: =ROUND(RAND()*(900-(2))+(2),0)*10 -> 5710 | AV13: 4) | AX13: =AN13/1000 -> 5.71 | BA13: km
C15: millimetres to metres | U15: millimetres to metres | AM15: millimetres to metres
C16: 5) | D16: =ROUND(RAND()*(900-(2))+(2),0)*10 -> 960 | L16: 5) | N16: =D16/1000 -> 0.96 | Q16: m | U16: 5) | V16: =ROUND(RAND()*(900-(2))+(2),0)*10 -> 6460 | AD16: 5) | AF16: =V16/1000 -> 6.46 | AI16: m | AM16: 5) | AN16: =ROUND(RAND()*(900-(2))+(2),0)*10 -> 1040 | AV16: 5) | AX16: =AN16/1000 -> 1.04 | BA16: m
C18: metres to millimetres | U18: metres to millimetres | AM18: metres to millimetres
C19: 6) | D19: =ROUND(RAND()*(20-(1))+(1),1) -> 15.3 | L19: 6) | N19: =D19*1000 -> 15300 | Q19: mm | U19: 6) | V19: =ROUND(RAND()*(20-(1))+(1),1) -> 11.7 | AD19: 6) | AF19: =V19*1000 -> 11700 | AI19: mm | AM19: 6) | AN19: =ROUND(RAND()*(20-(1))+(1),1) -> 1.9 | AV19: 6) | AX19: =AN19*1000 -> 1900 | BA19: mm
C23: Conversions 4 | L23: Conversions 4 | U23: Conversions 5 | AD23: Conversions 5 | AM23: Conversions 6 | AV23: Conversions 6
C24: metres to centimetres | U24: metres to centimetres | AM24: metres to centimetres
C25: 1) | E25: =ROUND(RAND()*(900-(0.1))+(0.1),1) -> 191.3 | L25: 1) | N25: =E25*100 -> 19130 | Q25: cm | U25: 1) | W25: =ROUND(RAND()*(900-(0.1))+(0.1),1) -> 486.5 | AD25: 1) | AF25: =W25*100 -> 48650 | AI25: cm | AM25: 1) | AO25: =ROUND(RAND()*(900-(0.1))+(0.1),1) -> 369.9 | AV25: 1) | AX25: =AO25*100 -> 36990 | BA25: cm
C27: kilometres to metres | U27: kilometres to metres | AM27: kilometres to metres
C28: 2) | D28: =ROUND(RAND()*(30-(11))+(11),1) -> 28.4 | L28: 2) | N28: =D28*1000 -> 28400 | Q28: m | U28: 2) | V28: =ROUND(RAND()*(30-(11))+(11),1) -> 14.7 | AD28: 2) | AF28: =V28*1000 -> 14700 | AI28: m | AM28: 2) | AN28: =ROUND(RAND()*(30-(11))+(11),1) -> 28.3 | AV28: 2) | AX28: =AN28*1000 -> 28300 | BA28: m
C30: centimetres to metres | U30: centimetres to metres | AM30: centimetres to metres
C31: 3) | D31: =ROUND(RAND()*(90-(2))+(2),0)*10 -> 440 | L31: 3) | N31: =D31/100 -> 4.4 | Q31: m | U31: 3) | V31: =ROUND(RAND()*(90-(2))+(2),0)*10 -> 710 | AD31: 3) | AF31: =V31/100 -> 7.1 | AI31: m | AM31: 3) | AN31: =ROUND(RAND()*(90-(2))+(2),0)*10 -> 120 | AV31: 3) | AX31: =AN31/100 -> 1.2 | BA31: m
C33: metres to kilometres | U33: metres to kilometres | AM33: metres to kilometres
C34: 4) | D34: =ROUND(RAND()*(900-(2))+(2),0)*10 -> 6540 | L34: 4) | N34: =D34/1000 -> 6.54 | Q34: km | U34: 4) | V34: =ROUND(RAND()*(900-(2))+(2),0)*10 -> 6520 | AD34: 4) | AF34: =V34/1000 -> 6.52 | AI34: km | AM34: 4) | AN34: =ROUND(RAND()*(900-(2))+(2),0)*10 -> 2350 | AV34: 4) | AX34: =AN34/1000 -> 2.35 | BA34: km
C36: millimetres to metres | U36: millimetres to metres | AM36: millimetres to metres
C37: 5) | D37: =ROUND(RAND()*(900-(2))+(2),0)*10 -> 4830 | L37: 5) | N37: =D37/1000 -> 4.83 | Q37: m | U37: 5) | V37: =ROUND(RAND()*(900-(2))+(2),0)*10 -> 7170 | AD37: 5) | AF37: =V37/1000 -> 7.17 | AI37: m | AM37: 5) | AN37: =ROUND(RAND()*(900-(2))+(2),0)*10 -> 3810 | AV37: 5) | AX37: =AN37/1000 -> 3.81 | BA37: m
C39: metres to millimetres | U39: metres to millimetres | AM39: metres to millimetres
C40: 6) | D40: =ROUND(RAND()*(20-(1))+(1),1) -> 14.4 | L40: 6) | N40: =D40*1000 -> 14400 | Q40: mm | U40: 6) | V40: =ROUND(RAND()*(20-(1))+(1),1) -> 15.2 | AD40: 6) | AF40: =V40*1000 -> 15200 | AI40: mm | AM40: 6) | AN40: =ROUND(RAND()*(20-(1))+(1),1) -> 5.3 | AV40: 6) | AX40: =AN40*1000 -> 5300 | BA40: mm

Sheet Perimeter
C2: Perimeter 1 | L2: Perimeter 1 | U2: Perimeter 2 | AD2: Perimeter 2 | AM2: Perimeter 3 | AV2: Perimeter 3
C3: ="1) A rectangle has a length of "&J3&" cm and breadth "&J4&" cm. Find the perimeter." -> 1) A rectangle has a length of 19 cm and breadth 10 cm. Find the perimeter. | J3: =ROUND(RAND()*(30-15)+15,0) -> 19 | U3: ="1) A rectangle has a length of "&AB3&" cm and breadth "&AB4&" cm. Find the perimeter." -> 1) A rectangle has a length of 30 cm and breadth 4 cm. Find the perimeter. | AB3: =ROUND(RAND()*(30-15)+15,0) -> 30 | AM3: ="1) A rectangle has a length of "&AT3&" cm and breadth "&AT4&" cm. Find the perimeter." -> 1) A rectangle has a length of 18 cm and breadth 9 cm. Find the perimeter. | AT3: =ROUND(RAND()*(30-15)+15,0) -> 18
J4: =ROUND(RAND()*(14-3)+3,0) -> 10 | L4: 1) | N4: =2*J3+2*J4 -> 58 | Q4: cm | AB4: =ROUND(RAND()*(14-3)+3,0) -> 4 | AD4: 1) | AF4: =2*AB3+2*AB4 -> 68 | AI4: cm | AT4: =ROUND(RAND()*(14-3)+3,0) -> 9 | AV4: 1) | AX4: =2*AT3+2*AT4 -> 54 | BA4: cm
C6: ="2) A rectangle has a length of "&J6&" m and breadth "&J7&" m. Calculate the perimeter." -> 2) A rectangle has a length of 10 m and breadth 4.6 m. Calculate the perimeter. | J6: =ROUND(RAND()*(15-9)+9,1) -> 10 | U6: ="2) A rectangle has a length of "&AB6&" m and breadth "&AB7&" m. Calculate the perimeter." -> 2) A rectangle has a length of 12 m and breadth 5 m. Calculate the perimeter. | AB6: =ROUND(RAND()*(15-9)+9,1) -> 12 | AM6: ="2) A rectangle has a length of "&AT6&" m and breadth "&AT7&" m. Calculate the perimeter." -> 2) A rectangle has a length of 14.1 m and breadth 7.8 m. Calculate the perimeter. | AT6: =ROUND(RAND()*(15-9)+9,1) -> 14.1
J7: =ROUND(RAND()*(8-4)+4,1) -> 4.6 | L7: 2) | N7: =2*J6+2*J7 -> 29.2 | Q7: m | AB7: =ROUND(RAND()*(8-4)+4,1) -> 5 | AD7: 2) | AF7: =2*AB6+2*AB7 -> 34 | AI7: m | AT7: =ROUND(RAND()*(8-4)+4,1) -> 7.8 | AV7: 2) | AX7: =2*AT6+2*AT7 -> 43.8 | BA7: m
C9: ="3) A rectangle has a perimeter of "&J12&" cm. The length of the rectangle is "&J11&" cm. Evaluate the breadth of the rectangle." -> 3) A rectangle has a perimeter of 38 cm. The length of the rectangle is 12 cm. Evaluate the breadth of the rectangle. | U9: ="3) A rectangle has a perimeter of "&AB12&" cm. The length of the rectangle is "&AB11&" cm. Evaluate the breadth of the rectangle." -> 3) A rectangle has a perimeter of 28 cm. The length of the rectangle is 12 cm. Evaluate the breadth of the rectangle. | AM9: ="3) A rectangle has a perimeter of "&AT12&" cm. The length of the rectangle is "&AT11&" cm. Evaluate the breadth of the rectangle." -> 3) A rectangle has a perimeter of 30 cm. The length of the rectangle is 9 cm. Evaluate the breadth of the rectangle.
J10: =ROUND(RAND()*(8-2)+2,0) -> 7 | AB10: =ROUND(RAND()*(8-2)+2,0) -> 2 | AT10: =ROUND(RAND()*(8-2)+2,0) -> 6
J11: =ROUND(RAND()*(15-9)+9,0) -> 12 | L11: 3) | N11: =J10 -> 7 | Q11: cm | AB11: =ROUND(RAND()*(15-9)+9,0) -> 12 | AD11: 3) | AF11: =AB10 -> 2 | AI11: cm | AT11: =ROUND(RAND()*(15-9)+9,0) -> 9 | AV11: 3) | AX11: =AT10 -> 6 | BA11: cm
J12: =2*J11+2*J10 -> 38 | AB12: =2*AB11+2*AB10 -> 28 | AT12: =2*AT11+2*AT10 -> 30
C14: ="4) A square has a length of "&J14&" m. Calculate the perimeter." -> 4) A square has a length of 14.7 m. Calculate the perimeter. | J14: =ROUND(RAND()*(15-9)+9,1) -> 14.7 | U14: ="4) A square has a length of "&AB14&" m. Calculate the perimeter." -> 4) A square has a length of 13.1 m. Calculate the perimeter. | AB14: =ROUND(RAND()*(15-9)+9,1) -> 13.1 | AM14: ="4) A square has a length of "&AT14&" m. Calculate the perimeter." -> 4) A square has a length of 13.8 m. Calculate the perimeter. | AT14: =ROUND(RAND()*(15-9)+9,1) -> 13.8
L15: 4) | N15: =4*J14 -> 58.8 | Q15: m | AD15: 4) | AF15: =4*AB14 -> 52.4 | AI15: m | AV15: 4) | AX15: =4*AT14 -> 55.2 | BA15: m
C17: ="5) A rectangle has a perimeter of "&J20&" cm. The breadth of the rectangle is "&J18&" cm. Evaluate the length of the rectangle." -> 5) A rectangle has a perimeter of 29.8 cm. The breadth of the rectangle is 5 cm. Evaluate the length of the rectangle. | U17: ="5) A rectangle has a perimeter of "&AB20&" cm. The breadth of the rectangle is "&AB18&" cm. Evaluate the length of the rectangle." -> 5) A rectangle has a perimeter of 33.2 cm. The breadth of the rectangle is 3.4 cm. Evaluate the length of the rectangle. | AM17: ="5) A rectangle has a perimeter of "&AT20&" cm. The breadth of the rectangle is "&AT18&" cm. Evaluate the length of the rectangle." -> 5) A rectangle has a perimeter of 43.4 cm. The breadth of the rectangle is 7.4 cm. Evaluate the length of the rectangle.
J18: =ROUND(RAND()*(8-2)+2,1) -> 5 | AB18: =ROUND(RAND()*(8-2)+2,1) -> 3.4 | AT18: =ROUND(RAND()*(8-2)+2,1) -> 7.4
J19: =ROUND(RAND()*(15-9)+9,1) -> 9.9 | L19: 5) | N19: =J19 -> 9.9 | Q19: cm | AB19: =ROUND(RAND()*(15-9)+9,1) -> 13.2 | AD19: 5) | AF19: =AB19 -> 13.2 | AI19: cm | AT19: =ROUND(RAND()*(15-9)+9,1) -> 14.3 | AV19: 5) | AX19: =AT19 -> 14.3 | BA19: cm
J20: =2*J19+2*J18 -> 29.8 | AB20: =2*AB19+2*AB18 -> 33.2 | AT20: =2*AT19+2*AT18 -> 43.4
C24: Perimeter 4 | L24: Perimeter 4 | U24: Perimeter 5 | AD24: Perimeter 5 | AM24: Perimeter 6 | AV24: Perimeter 6
C25: ="1) A rectangle has a length of "&J25&" cm and breadth "&J26&" cm. Find the perimeter." -> 1) A rectangle has a length of 21 cm and breadth 9 cm. Find the perimeter. | J25: =ROUND(RAND()*(30-15)+15,0) -> 21 | U25: ="1) A rectangle has a length of "&AB25&" cm and breadth "&AB26&" cm. Find the perimeter." -> 1) A rectangle has a length of 27 cm and breadth 5 cm. Find the perimeter. | AB25: =ROUND(RAND()*(30-15)+15,0) -> 27 | AM25: ="1) A rectangle has a length of "&AT25&" cm and breadth "&AT26&" cm. Find the perimeter." -> 1) A rectangle has a length of 27 cm and breadth 12 cm. Find the perimeter. | AT25: =ROUND(RAND()*(30-15)+15,0) -> 27
J26: =ROUND(RAND()*(14-3)+3,0) -> 9 | L26: 1) | N26: =2*J25+2*J26 -> 60 | Q26: cm | AB26: =ROUND(RAND()*(14-3)+3,0) -> 5 | AD26: 1) | AF26: =2*AB25+2*AB26 -> 64 | AI26: cm | AT26: =ROUND(RAND()*(14-3)+3,0) -> 12 | AV26: 1) | AX26: =2*AT25+2*AT26 -> 78 | BA26: cm
C28: ="2) A rectangle has a length of "&J28&" m and breadth "&J29&" m. Calculate the perimeter." -> 2) A rectangle has a length of 10.5 m and breadth 7.5 m. Calculate the perimeter. | J28: =ROUND(RAND()*(15-9)+9,1) -> 10.5 | U28: ="2) A rectangle has a length of "&AB28&" m and breadth "&AB29&" m. Calculate the perimeter." -> 2) A rectangle has a length of 12.8 m and breadth 7.9 m. Calculate the perimeter. | AB28: =ROUND(RAND()*(15-9)+9,1) -> 12.8 | AM28: ="2) A rectangle has a length of "&AT28&" m and breadth "&AT29&" m. Calculate the perimeter." -> 2) A rectangle has a length of 13 m and breadth 5.7 m. Calculate the perimeter. | AT28: =ROUND(RAND()*(15-9)+9,1) -> 13
J29: =ROUND(RAND()*(8-4)+4,1) -> 7.5 | L29: 2) | N29: =2*J28+2*J29 -> 36 | Q29: m | AB29: =ROUND(RAND()*(8-4)+4,1) -> 7.9 | AD29: 2) | AF29: =2*AB28+2*AB29 -> 41.4 | AI29: m | AT29: =ROUND(RAND()*(8-4)+4,1) -> 5.7 | AV29: 2) | AX29: =2*AT28+2*AT29 -> 37.4 | BA29: m
C31: ="3) A rectangle has a perimeter of "&J34&" cm. The length of the rectangle is "&J33&" cm. Evaluate the breadth of the rectangle." -> 3) A rectangle has a perimeter of 30 cm. The length of the rectangle is 9 cm. Evaluate the breadth of the rectangle. | U31: ="3) A rectangle has a perimeter of "&AB34&" cm. The length of the rectangle is "&AB33&" cm. Evaluate the breadth of the rectangle." -> 3) A rectangle has a perimeter of 36 cm. The length of the rectangle is 12 cm. Evaluate the breadth of the rectangle. | AM31: ="3) A rectangle has a perimeter of "&AT34&" cm. The length of the rectangle is "&AT33&" cm. Evaluate the breadth of the rectangle." -> 3) A rectangle has a perimeter of 42 cm. The length of the rectangle is 15 cm. Evaluate the breadth of the rectangle.
J32: =ROUND(RAND()*(8-2)+2,0) -> 6 | AB32: =ROUND(RAND()*(8-2)+2,0) -> 6 | AT32: =ROUND(RAND()*(8-2)+2,0) -> 6
J33: =ROUND(RAND()*(15-9)+9,0) -> 9 | L33: 3) | N33: =J32 -> 6 | Q33: cm | AB33: =ROUND(RAND()*(15-9)+9,0) -> 12 | AD33: 3) | AF33: =AB32 -> 6 | AI33: cm | AT33: =ROUND(RAND()*(15-9)+9,0) -> 15 | AV33: 3) | AX33: =AT32 -> 6 | BA33: cm
J34: =2*J33+2*J32 -> 30 | AB34: =2*AB33+2*AB32 -> 36 | AT34: =2*AT33+2*AT32 -> 42
C36: ="4) A square has a length of "&J36&" m. Calculate the perimeter." -> 4) A square has a length of 13.4 m. Calculate the perimeter. | J36: =ROUND(RAND()*(15-9)+9,1) -> 13.4 | U36: ="4) A square has a length of "&AB36&" m. Calculate the perimeter." -> 4) A square has a length of 12.1 m. Calculate the perimeter. | AB36: =ROUND(RAND()*(15-9)+9,1) -> 12.1 | AM36: ="4) A square has a length of "&AT36&" m. Calculate the perimeter." -> 4) A square has a length of 12 m. Calculate the perimeter. | AT36: =ROUND(RAND()*(15-9)+9,1) -> 12
L37: 4) | N37: =4*J36 -> 53.6 | Q37: m | AD37: 4) | AF37: =4*AB36 -> 48.4 | AI37: m | AV37: 4) | AX37: =4*AT36 -> 48 | BA37: m
C39: ="5) A rectangle has a perimeter of "&J42&" cm. The breadth of the rectangle is "&J40&" cm. Evaluate the length of the rectangle." -> 5) A rectangle has a perimeter of 34.2 cm. The breadth of the rectangle is 6.6 cm. Evaluate the length of the rectangle. | U39: ="5) A rectangle has a perimeter of "&AB42&" cm. The breadth of the rectangle is "&AB40&" cm. Evaluate the length of the rectangle." -> 5) A rectangle has a perimeter of 40.8 cm. The breadth of the rectangle is 6.5 cm. Evaluate the length of the rectangle. | AM39: ="5) A rectangle has a perimeter of "&AT42&" cm. The breadth of the rectangle is "&AT40&" cm. Evaluate the length of the rectangle." -> 5) A rectangle has a perimeter of 27.8 cm. The breadth of the rectangle is 3.2 cm. Evaluate the length of the rectangle.
J40: =ROUND(RAND()*(8-2)+2,1) -> 6.6 | AB40: =ROUND(RAND()*(8-2)+2,1) -> 6.5 | AT40: =ROUND(RAND()*(8-2)+2,1) -> 3.2
J41: =ROUND(RAND()*(15-9)+9,1) -> 10.5 | L41: 5) | N41: =J41 -> 10.5 | Q41: cm | AB41: =ROUND(RAND()*(15-9)+9,1) -> 13.9 | AD41: 5) | AF41: =AB41 -> 13.9 | AI41: cm | AT41: =ROUND(RAND()*(15-9)+9,1) -> 10.7 | AV41: 5) | AX41: =AT41 -> 10.7 | BA41: cm
J42: =2*J41+2*J40 -> 34.2 | AB42: =2*AB41+2*AB40 -> 40.8 | AT42: =2*AT41+2*AT40 -> 27.8

Sheet Area
C2: Area 1 | L2: Area 1 | U2: Area 2 | AD2: Area 2 | AM2: Area 3 | AV2: Area 3
C3: ="1) A rectangle has a length of "&J3&" cm and breadth "&J4&" cm. Find the area." -> 1) A rectangle has a length of 23 cm and breadth 14 cm. Find the area. | J3: =ROUND(RAND()*(30-15)+15,0) -> 23 | U3: ="1) A rectangle has a length of "&AB3&" cm and breadth "&AB4&" cm. Find the area." -> 1) A rectangle has a length of 18 cm and breadth 13 cm. Find the area. | AB3: =ROUND(RAND()*(30-15)+15,0) -> 18 | AM3: ="1) A rectangle has a length of "&AT3&" cm and breadth "&AT4&" cm. Find the area." -> 1) A rectangle has a length of 22 cm and breadth 13 cm. Find the area. | AT3: =ROUND(RAND()*(30-15)+15,0) -> 22
J4: =ROUND(RAND()*(14-3)+3,0) -> 14 | L4: 1) | N4: =J3*J4 -> 322 | Q4: cm2 | AB4: =ROUND(RAND()*(14-3)+3,0) -> 13 | AD4: 1) | AF4: =AB3*AB4 -> 234 | AI4: cm2 | AT4: =ROUND(RAND()*(14-3)+3,0) -> 13 | AV4: 1) | AX4: =AT3*AT4 -> 286 | BA4: cm2
C6: ="2) A rectangle has a length of "&J6&" m and breadth "&J7&" m. Calculate the area." -> 2) A rectangle has a length of 30 m and breadth 15.6 m. Calculate the area. | J6: =ROUND(RAND()*(9-2)+2,0)*10 -> 30 | U6: ="2) A rectangle has a length of "&AB6&" m and breadth "&AB7&" m. Calculate the area." -> 2) A rectangle has a length of 40 m and breadth 16.2 m. Calculate the area. | AB6: =ROUND(RAND()*(9-2)+2,0)*10 -> 40 | AM6: ="2) A rectangle has a length of "&AT6&" m and breadth "&AT7&" m. Calculate the area." -> 2) A rectangle has a length of 40 m and breadth 15 m. Calculate the area. | AT6: =ROUND(RAND()*(9-2)+2,0)*10 -> 40
J7: =ROUND(RAND()*(18-6)+6,1) -> 15.6 | L7: 2) | N7: =J6*J7 -> 468 | Q7: m2 | AB7: =ROUND(RAND()*(18-6)+6,1) -> 16.2 | AD7: 2) | AF7: =AB6*AB7 -> 648 | AI7: m2 | AT7: =ROUND(RAND()*(18-6)+6,1) -> 15 | AV7: 2) | AX7: =AT6*AT7 -> 600 | BA7: m2
C9: ="3) A rectangle has a area of "&J12&" square centimetres. The length of the rectangle is "&J11&" cm. Evaluate the breadth of the rectangle." -> 3) A rectangle has a area of 63 square centimetres. The length of the rectangle is 9 cm. Evaluate the breadth of the rectangle. | U9: ="3) A rectangle has a area of "&AB12&" square centimetres. The length of the rectangle is "&AB11&" cm. Evaluate the breadth of the rectangle." -> 3) A rectangle has a area of 60 square centimetres. The length of the rectangle is 12 cm. Evaluate the breadth of the rectangle. | AM9: ="3) A rectangle has a area of "&AT12&" square centimetres. The length of the rectangle is "&AT11&" cm. Evaluate the breadth of the rectangle." -> 3) A rectangle has a area of 60 square centimetres. The length of the rectangle is 15 cm. Evaluate the breadth of the rectangle.
J10: =ROUND(RAND()*(8-2)+2,0) -> 7 | AB10: =ROUND(RAND()*(8-2)+2,0) -> 5 | AT10: =ROUND(RAND()*(8-2)+2,0) -> 4
J11: =ROUND(RAND()*(15-9)+9,0) -> 9 | L11: 3) | N11: =J10 -> 7 | Q11: cm | AB11: =ROUND(RAND()*(15-9)+9,0) -> 12 | AD11: 3) | AF11: =AB10 -> 5 | AI11: cm | AT11: =ROUND(RAND()*(15-9)+9,0) -> 15 | AV11: 3) | AX11: =AT10 -> 4 | BA11: cm
J12: =J11*J10 -> 63 | AB12: =AB11*AB10 -> 60 | AT12: =AT11*AT10 -> 60
C14: ="4) A square has a length of "&J14&" m. Calculate the area." -> 4) A square has a length of 12 m. Calculate the area. | J14: =ROUND(RAND()*(12-3)+3,0) -> 12 | U14: ="4) A square has a length of "&AB14&" m. Calculate the area." -> 4) A square has a length of 7 m. Calculate the area. | AB14: =ROUND(RAND()*(12-3)+3,0) -> 7 | AM14: ="4) A square has a length of "&AT14&" m. Calculate the area." -> 4) A square has a length of 5 m. Calculate the area. | AT14: =ROUND(RAND()*(12-3)+3,0) -> 5
L15: 4) | N15: =J14*J14 -> 144 | Q15: m2 | AD15: 4) | AF15: =AB14*AB14 -> 49 | AI15: m2 | AV15: 4) | AX15: =AT14*AT14 -> 25 | BA15: m2
C17: ="5) The length of the base of a triangle is "&J19&" cm. The height is "&J18&" cm. Calculate the area of the triangle." -> 5) The length of the base of a triangle is 39 cm. The height is 6 cm. Calculate the area of the triangle. | U17: ="5) The length of the base of a triangle is "&AB19&" cm. The height is "&AB18&" cm. Calculate the area of the triangle." -> 5) The length of the base of a triangle is 27 cm. The height is 10 cm. Calculate the area of the triangle. | AM17: ="5) The length of the base of a triangle is "&AT19&" cm. The height is "&AT18&" cm. Calculate the area of the triangle." -> 5) The length of the base of a triangle is 25 cm. The height is 6 cm. Calculate the area of the triangle.
J18: =ROUND(RAND()*(10-1)+1,0)*2 -> 6 | AB18: =ROUND(RAND()*(10-1)+1,0)*2 -> 10 | AT18: =ROUND(RAND()*(10-1)+1,0)*2 -> 6
J19: =ROUND(RAND()*(40-6)+6,0) -> 39 | L19: 5) | N19: =J20 -> 117 | Q19: cm2 | AB19: =ROUND(RAND()*(40-6)+6,0) -> 27 | AD19: 5) | AF19: =AB20 -> 135 | AI19: cm2 | AT19: =ROUND(RAND()*(40-6)+6,0) -> 25 | AV19: 5) | AX19: =AT20 -> 75 | BA19: cm2
J20: =0.5*J19*J18 -> 117 | AB20: =0.5*AB19*AB18 -> 135 | AT20: =0.5*AT19*AT18 -> 75
C24: Area 4 | L24: Area 4 | U24: Area 5 | AD24: Area 5 | AM24: Area 6 | AV24: Area 6
C25: ="1) A rectangle has a length of "&J25&" cm and breadth "&J26&" cm. Find the area." -> 1) A rectangle has a length of 27 cm and breadth 4 cm. Find the area. | J25: =ROUND(RAND()*(30-15)+15,0) -> 27 | U25: ="1) A rectangle has a length of "&AB25&" cm and breadth "&AB26&" cm. Find the area." -> 1) A rectangle has a length of 27 cm and breadth 12 cm. Find the area. | AB25: =ROUND(RAND()*(30-15)+15,0) -> 27 | AM25: ="1) A rectangle has a length of "&AT25&" cm and breadth "&AT26&" cm. Find the area." -> 1) A rectangle has a length of 17 cm and breadth 7 cm. Find the area. | AT25: =ROUND(RAND()*(30-15)+15,0) -> 17
J26: =ROUND(RAND()*(14-3)+3,0) -> 4 | L26: 1) | N26: =J25*J26 -> 108 | Q26: cm2 | AB26: =ROUND(RAND()*(14-3)+3,0) -> 12 | AD26: 1) | AF26: =AB25*AB26 -> 324 | AI26: cm2 | AT26: =ROUND(RAND()*(14-3)+3,0) -> 7 | AV26: 1) | AX26: =AT25*AT26 -> 119 | BA26: cm2
C28: ="2) A rectangle has a length of "&J28&" m and breadth "&J29&" m. Calculate the area." -> 2) A rectangle has a length of 60 m and breadth 8.4 m. Calculate the area. | J28: =ROUND(RAND()*(9-2)+2,0)*10 -> 60 | U28: ="2) A rectangle has a length of "&AB28&" m and breadth "&AB29&" m. Calculate the area." -> 2) A rectangle has a length of 90 m and breadth 9.4 m. Calculate the area. | AB28: =ROUND(RAND()*(9-2)+2,0)*10 -> 90 | AM28: ="2) A rectangle has a length of "&AT28&" m and breadth "&AT29&" m. Calculate the area." -> 2) A rectangle has a length of 80 m and breadth 11.9 m. Calculate the area. | AT28: =ROUND(RAND()*(9-2)+2,0)*10 -> 80
J29: =ROUND(RAND()*(18-6)+6,1) -> 8.4 | L29: 2) | N29: =J28*J29 -> 504 | Q29: m2 | AB29: =ROUND(RAND()*(18-6)+6,1) -> 9.4 | AD29: 2) | AF29: =AB28*AB29 -> 846 | AI29: m2 | AT29: =ROUND(RAND()*(18-6)+6,1) -> 11.9 | AV29: 2) | AX29: =AT28*AT29 -> 952 | BA29: m2
C31: ="3) A rectangle has a area of "&J34&" square centimetres. The length of the rectangle is "&J33&" cm. Evaluate the breadth of the rectangle." -> 3) A rectangle has a area of 52 square centimetres. The length of the rectangle is 13 cm. Evaluate the breadth of the rectangle. | U31: ="3) A rectangle has a area of "&AB34&" square centimetres. The length of the rectangle is "&AB33&" cm. Evaluate the breadth of the rectangle." -> 3) A rectangle has a area of 39 square centimetres. The length of the rectangle is 13 cm. Evaluate the breadth of the rectangle. | AM31: ="3) A rectangle has a area of "&AT34&" square centimetres. The length of the rectangle is "&AT33&" cm. Evaluate the breadth of the rectangle." -> 3) A rectangle has a area of 60 square centimetres. The length of the rectangle is 10 cm. Evaluate the breadth of the rectangle.
J32: =ROUND(RAND()*(8-2)+2,0) -> 4 | AB32: =ROUND(RAND()*(8-2)+2,0) -> 3 | AT32: =ROUND(RAND()*(8-2)+2,0) -> 6
J33: =ROUND(RAND()*(15-9)+9,0) -> 13 | L33: 3) | N33: =J32 -> 4 | Q33: cm | AB33: =ROUND(RAND()*(15-9)+9,0) -> 13 | AD33: 3) | AF33: =AB32 -> 3 | AI33: cm | AT33: =ROUND(RAND()*(15-9)+9,0) -> 10 | AV33: 3) | AX33: =AT32 -> 6 | BA33: cm
J34: =J33*J32 -> 52 | AB34: =AB33*AB32 -> 39 | AT34: =AT33*AT32 -> 60
C36: ="4) A square has a length of "&J36&" m. Calculate the area." -> 4) A square has a length of 6 m. Calculate the area. | J36: =ROUND(RAND()*(12-3)+3,0) -> 6 | U36: ="4) A square has a length of "&AB36&" m. Calculate the area." -> 4) A square has a length of 9 m. Calculate the area. | AB36: =ROUND(RAND()*(12-3)+3,0) -> 9 | AM36: ="4) A square has a length of "&AT36&" m. Calculate the area." -> 4) A square has a length of 9 m. Calculate the area. | AT36: =ROUND(RAND()*(12-3)+3,0) -> 9
L37: 4) | N37: =J36*J36 -> 36 | Q37: m2 | AD37: 4) | AF37: =AB36*AB36 -> 81 | AI37: m2 | AV37: 4) | AX37: =AT36*AT36 -> 81 | BA37: m2
C39: ="5) The length of the base of a triangle is "&J41&" cm. The height is "&J40&" cm. Calculate the area of the triangle." -> 5) The length of the base of a triangle is 30 cm. The height is 14 cm. Calculate the area of the triangle. | U39: ="5) The length of the base of a triangle is "&AB41&" cm. The height is "&AB40&" cm. Calculate the area of the triangle." -> 5) The length of the base of a triangle is 14 cm. The height is 10 cm. Calculate the area of the triangle. | AM39: ="5) The length of the base of a triangle is "&AT41&" cm. The height is "&AT40&" cm. Calculate the area of the triangle." -> 5) The length of the base of a triangle is 27 cm. The height is 18 cm. Calculate the area of the triangle.
J40: =ROUND(RAND()*(10-1)+1,0)*2 -> 14 | AB40: =ROUND(RAND()*(10-1)+1,0)*2 -> 10 | AT40: =ROUND(RAND()*(10-1)+1,0)*2 -> 18
J41: =ROUND(RAND()*(40-6)+6,0) -> 30 | L41: 5) | N41: =J42 -> 210 | Q41: cm2 | AB41: =ROUND(RAND()*(40-6)+6,0) -> 14 | AD41: 5) | AF41: =AB42 -> 70 | AI41: cm2 | AT41: =ROUND(RAND()*(40-6)+6,0) -> 27 | AV41: 5) | AX41: =AT42 -> 243 | BA41: cm2
J42: =0.5*J41*J40 -> 210 | AB42: =0.5*AB41*AB40 -> 70 | AT42: =0.5*AT41*AT40 -> 243

Sheet Scales
C2: Scales 1 | L2: Scales 1 | U2: Scales 2 | AD2: Scales 2 | AM2: Scales 3 | AV2: Scales 3
C3: ="1) A scale drawing of a rectangle has a length of "&J3&" cm and breadth "&J4&" cm. The scale of the drawing is "&J5&" cm = "&J6&" m. Find the real-life perimeter." -> 1) A scale drawing of a rectangle has a length of 29 cm and breadth 7 cm. The scale of the drawing is 1 cm = 5 m. Find the real-life perimeter. | J3: =ROUND(RAND()*(30-15)+15,0) -> 29 | U3: ="1) A scale drawing of a rectangle has a length of "&AB3&" cm and breadth "&AB4&" cm. The scale of the drawing is "&AB5&" cm = "&AB6&" m. Find the real-life perimeter." -> 1) A scale drawing of a rectangle has a length of 23 cm and breadth 3 cm. The scale of the drawing is 2 cm = 5 m. Find the real-life perimeter. | AB3: =ROUND(RAND()*(30-15)+15,0) -> 23 | AM3: ="1) A scale drawing of a rectangle has a length of "&AT3&" cm and breadth "&AT4&" cm. The scale of the drawing is "&AT5&" cm = "&AT6&" m. Find the real-life perimeter." -> 1) A scale drawing of a rectangle has a length of 20 cm and breadth 10 cm. The scale of the drawing is 2 cm = 7 m. Find the real-life perimeter. | AT3: =ROUND(RAND()*(30-15)+15,0) -> 20
J4: =ROUND(RAND()*(14-3)+3,0) -> 7 | AB4: =ROUND(RAND()*(14-3)+3,0) -> 3 | AT4: =ROUND(RAND()*(14-3)+3,0) -> 10
J5: =ROUND(RAND()*(2-1)+1,0) -> 1 | AB5: =ROUND(RAND()*(2-1)+1,0) -> 2 | AT5: =ROUND(RAND()*(2-1)+1,0) -> 2
J6: =IF(J5=1,ROUND(RAND()*(9-2)+2,0),J5*ROUND(RAND()*(4-1)+1,0)+1) -> 5 | L6: 1) | N6: =2*(J6/J5)*J3+2*(J6/J5)*J4 -> 360 | Q6: m | AB6: =IF(AB5=1,ROUND(RAND()*(9-2)+2,0),AB5*ROUND(RAND()*(4-1)+1,0)+1) -> 5 | AD6: 1) | AF6: =2*(AB6/AB5)*AB3+2*(AB6/AB5)*AB4 -> 130 | AI6: m | AT6: =IF(AT5=1,ROUND(RAND()*(9-2)+2,0),AT5*ROUND(RAND()*(4-1)+1,0)+1) -> 7 | AV6: 1) | AX6: =2*(AT6/AT5)*AT3+2*(AT6/AT5)*AT4 -> 210 | BA6: m
C9: ="2) A scale drawing of a rectangle has a length of "&J9&" cm and breadth "&J10&" cm. The scale of the drawing is "&J11&" cm = "&J12&" m. Find the real-life area." -> 2) A scale drawing of a rectangle has a length of 18 cm and breadth 8 cm. The scale of the drawing is 2 cm = 5 m. Find the real-life area. | J9: =ROUND(RAND()*(30-15)+15,0) -> 18 | U9: ="2) A scale drawing of a rectangle has a length of "&AB9&" cm and breadth "&AB10&" cm. The scale of the drawing is "&AB11&" cm = "&AB12&" m. Find the real-life area." -> 2) A scale drawing of a rectangle has a length of 15 cm and breadth 5 cm. The scale of the drawing is 1 cm = 8 m. Find the real-life area. | AB9: =ROUND(RAND()*(30-15)+15,0) -> 15 | AM9: ="2) A scale drawing of a rectangle has a length of "&AT9&" cm and breadth "&AT10&" cm. The scale of the drawing is "&AT11&" cm = "&AT12&" m. Find the real-life area." -> 2) A scale drawing of a rectangle has a length of 23 cm and breadth 9 cm. The scale of the drawing is 1 cm = 7 m. Find the real-life area. | AT9: =ROUND(RAND()*(30-15)+15,0) -> 23
J10: =ROUND(RAND()*(14-3)+3,0) -> 8 | AB10: =ROUND(RAND()*(14-3)+3,0) -> 5 | AT10: =ROUND(RAND()*(14-3)+3,0) -> 9
J11: =ROUND(RAND()*(2-1)+1,0) -> 2 | L11: 2) | N11: =(J12/J11)*J9*(J12/J11)*J10 -> 900 | Q11: m | AB11: =ROUND(RAND()*(2-1)+1,0) -> 1 | AD11: 2) | AF11: =(AB12/AB11)*AB9*(AB12/AB11)*AB10 -> 4800 | AI11: m | AT11: =ROUND(RAND()*(2-1)+1,0) -> 1 | AV11: 2) | AX11: =(AT12/AT11)*AT9*(AT12/AT11)*AT10 -> 10143 | BA11: m
J12: =IF(J11=1,ROUND(RAND()*(9-2)+2,0),J11*ROUND(RAND()*(4-1)+1,0)+1) -> 5 | AB12: =IF(AB11=1,ROUND(RAND()*(9-2)+2,0),AB11*ROUND(RAND()*(4-1)+1,0)+1) -> 8 | AT12: =IF(AT11=1,ROUND(RAND()*(9-2)+2,0),AT11*ROUND(RAND()*(4-1)+1,0)+1) -> 7
C15: ="3) A scale drawing of a triangle has a base of "&J15&" cm and height of "&J16&" cm. The scale of the drawing is "&J17&" cm = "&J18&" m. Find the real-life area." -> 3) A scale drawing of a triangle has a base of 23 cm and height of 12 cm. The scale of the drawing is 1 cm = 2 m. Find the real-life area. | J15: =ROUND(RAND()*(30-15)+15,0) -> 23 | U15: ="3) A scale drawing of a triangle has a base of "&AB15&" cm and height of "&AB16&" cm. The scale of the drawing is "&AB17&" cm = "&AB18&" m. Find the real-life area." -> 3) A scale drawing of a triangle has a base of 28 cm and height of 6 cm. The scale of the drawing is 1 cm = 4 m. Find the real-life area. | AB15: =ROUND(RAND()*(30-15)+15,0) -> 28 | AM15: ="3) A scale drawing of a triangle has a base of "&AT15&" cm and height of "&AT16&" cm. The scale of the drawing is "&AT17&" cm = "&AT18&" m. Find the real-life area." -> 3) A scale drawing of a triangle has a base of 17 cm and height of 11 cm. The scale of the drawing is 1 cm = 4 m. Find the real-life area. | AT15: =ROUND(RAND()*(30-15)+15,0) -> 17
J16: =ROUND(RAND()*(14-3)+3,0) -> 12 | AB16: =ROUND(RAND()*(14-3)+3,0) -> 6 | AT16: =ROUND(RAND()*(14-3)+3,0) -> 11
J17: =ROUND(RAND()*(1-1)+1,0) -> 1 | L17: 3) | N17: =0.5*(J18/J17)*J15*(J18/J17)*J16 -> 552 | Q17: m | AB17: =ROUND(RAND()*(1-1)+1,0) -> 1 | AD17: 3) | AF17: =0.5*(AB18/AB17)*AB15*(AB18/AB17)*AB16 -> 1344 | AI17: m | AT17: =ROUND(RAND()*(1-1)+1,0) -> 1 | AV17: 3) | AX17: =0.5*(AT18/AT17)*AT15*(AT18/AT17)*AT16 -> 1496 | BA17: m
J18: =IF(J17=1,ROUND(RAND()*(9-2)+2,0),J17*ROUND(RAND()*(4-1)+1,0)+1) -> 2 | AB18: =IF(AB17=1,ROUND(RAND()*(9-2)+2,0),AB17*ROUND(RAND()*(4-1)+1,0)+1) -> 4 | AT18: =IF(AT17=1,ROUND(RAND()*(9-2)+2,0),AT17*ROUND(RAND()*(4-1)+1,0)+1) -> 4
C22: Scales 4 | L22: Scales 4 | U22: Scales 5 | AD22: Scales 5 | AM22: Scales 6 | AV22: Scales 6
C23: ="1) A scale drawing of a rectangle has a length of "&J23&" cm and breadth "&J24&" cm. The scale of the drawing is "&J25&" cm = "&J26&" m. Find the real-life perimeter." -> 1) A scale drawing of a rectangle has a length of 25 cm and breadth 4 cm. The scale of the drawing is 2 cm = 5 m. Find the real-life perimeter. | J23: =ROUND(RAND()*(30-15)+15,0) -> 25 | U23: ="1) A scale drawing of a rectangle has a length of "&AB23&" cm and breadth "&AB24&" cm. The scale of the drawing is "&AB25&" cm = "&AB26&" m. Find the real-life perimeter." -> 1) A scale drawing of a rectangle has a length of 30 cm and breadth 5 cm. The scale of the drawing is 1 cm = 8 m. Find the real-life perimeter. | AB23: =ROUND(RAND()*(30-15)+15,0) -> 30 | AM23: ="1) A scale drawing of a rectangle has a length of "&AT23&" cm and breadth "&AT24&" cm. The scale of the drawing is "&AT25&" cm = "&AT26&" m. Find the real-life perimeter." -> 1) A scale drawing of a rectangle has a length of 24 cm and breadth 6 cm. The scale of the drawing is 2 cm = 5 m. Find the real-life perimeter. | AT23: =ROUND(RAND()*(30-15)+15,0) -> 24
J24: =ROUND(RAND()*(14-3)+3,0) -> 4 | AB24: =ROUND(RAND()*(14-3)+3,0) -> 5 | AT24: =ROUND(RAND()*(14-3)+3,0) -> 6
J25: =ROUND(RAND()*(2-1)+1,0) -> 2 | AB25: =ROUND(RAND()*(2-1)+1,0) -> 1 | AT25: =ROUND(RAND()*(2-1)+1,0) -> 2
J26: =IF(J25=1,ROUND(RAND()*(9-2)+2,0),J25*ROUND(RAND()*(4-1)+1,0)+1) -> 5 | L26: 1) | N26: =2*(J26/J25)*J23+2*(J26/J25)*J24 -> 145 | Q26: m | AB26: =IF(AB25=1,ROUND(RAND()*(9-2)+2,0),AB25*ROUND(RAND()*(4-1)+1,0)+1) -> 8 | AD26: 1) | AF26: =2*(AB26/AB25)*AB23+2*(AB26/AB25)*AB24 -> 560 | AI26: m | AT26: =IF(AT25=1,ROUND(RAND()*(9-2)+2,0),AT25*ROUND(RAND()*(4-1)+1,0)+1) -> 5 | AV26: 1) | AX26: =2*(AT26/AT25)*AT23+2*(AT26/AT25)*AT24 -> 150 | BA26: m
C29: ="2) A scale drawing of a rectangle has a length of "&J29&" cm and breadth "&J30&" cm. The scale of the drawing is "&J31&" cm = "&J32&" m. Find the real-life area." -> 2) A scale drawing of a rectangle has a length of 20 cm and breadth 3 cm. The scale of the drawing is 1 cm = 5 m. Find the real-life area. | J29: =ROUND(RAND()*(30-15)+15,0) -> 20 | U29: ="2) A scale drawing of a rectangle has a length of "&AB29&" cm and breadth "&AB30&" cm. The scale of the drawing is "&AB31&" cm = "&AB32&" m. Find the real-life area." -> 2) A scale drawing of a rectangle has a length of 30 cm and breadth 8 cm. The scale of the drawing is 1 cm = 5 m. Find the real-life area. | AB29: =ROUND(RAND()*(30-15)+15,0) -> 30 | AM29: ="2) A scale drawing of a rectangle has a length of "&AT29&" cm and breadth "&AT30&" cm. The scale of the drawing is "&AT31&" cm = "&AT32&" m. Find the real-life area." -> 2) A scale drawing of a rectangle has a length of 28 cm and breadth 3 cm. The scale of the drawing is 1 cm = 6 m. Find the real-life area. | AT29: =ROUND(RAND()*(30-15)+15,0) -> 28
J30: =ROUND(RAND()*(14-3)+3,0) -> 3 | AB30: =ROUND(RAND()*(14-3)+3,0) -> 8 | AT30: =ROUND(RAND()*(14-3)+3,0) -> 3
J31: =ROUND(RAND()*(2-1)+1,0) -> 1 | L31: 2) | N31: =(J32/J31)*J29*(J32/J31)*J30 -> 1500 | Q31: m | AB31: =ROUND(RAND()*(2-1)+1,0) -> 1 | AD31: 2) | AF31: =(AB32/AB31)*AB29*(AB32/AB31)*AB30 -> 6000 | AI31: m | AT31: =ROUND(RAND()*(2-1)+1,0) -> 1 | AV31: 2) | AX31: =(AT32/AT31)*AT29*(AT32/AT31)*AT30 -> 3024 | BA31: m
J32: =IF(J31=1,ROUND(RAND()*(9-2)+2,0),J31*ROUND(RAND()*(4-1)+1,0)+1) -> 5 | AB32: =IF(AB31=1,ROUND(RAND()*(9-2)+2,0),AB31*ROUND(RAND()*(4-1)+1,0)+1) -> 5 | AT32: =IF(AT31=1,ROUND(RAND()*(9-2)+2,0),AT31*ROUND(RAND()*(4-1)+1,0)+1) -> 6
C35: ="3) A scale drawing of a triangle has a base of "&J35&" cm and height of "&J36&" cm. The scale of the drawing is "&J37&" cm = "&J38&" m. Find the real-life area." -> 3) A scale drawing of a triangle has a base of 18 cm and height of 10 cm. The scale of the drawing is 1 cm = 3 m. Find the real-life area. | J35: =ROUND(RAND()*(30-15)+15,0) -> 18 | U35: ="3) A scale drawing of a triangle has a base of "&AB35&" cm and height of "&AB36&" cm. The scale of the drawing is "&AB37&" cm = "&AB38&" m. Find the real-life area." -> 3) A scale drawing of a triangle has a base of 18 cm and height of 9 cm. The scale of the drawing is 1 cm = 7 m. Find the real-life area. | AB35: =ROUND(RAND()*(30-15)+15,0) -> 18 | AM35: ="3) A scale drawing of a triangle has a base of "&AT35&" cm and height of "&AT36&" cm. The scale of the drawing is "&AT37&" cm = "&AT38&" m. Find the real-life area." -> 3) A scale drawing of a triangle has a base of 24 cm and height of 13 cm. The scale of the drawing is 1 cm = 7 m. Find the real-life area. | AT35: =ROUND(RAND()*(30-15)+15,0) -> 24
J36: =ROUND(RAND()*(14-3)+3,0) -> 10 | AB36: =ROUND(RAND()*(14-3)+3,0) -> 9 | AT36: =ROUND(RAND()*(14-3)+3,0) -> 13
J37: =ROUND(RAND()*(1-1)+1,0) -> 1 | L37: 3) | N37: =0.5*(J38/J37)*J35*(J38/J37)*J36 -> 810 | Q37: m | AB37: =ROUND(RAND()*(1-1)+1,0) -> 1 | AD37: 3) | AF37: =0.5*(AB38/AB37)*AB35*(AB38/AB37)*AB36 -> 3969 | AI37: m | AT37: =ROUND(RAND()*(1-1)+1,0) -> 1 | AV37: 3) | AX37: =0.5*(AT38/AT37)*AT35*(AT38/AT37)*AT36 -> 7644 | BA37: m
J38: =IF(J37=1,ROUND(RAND()*(9-2)+2,0),J37*ROUND(RAND()*(4-1)+1,0)+1) -> 3 | AB38: =IF(AB37=1,ROUND(RAND()*(9-2)+2,0),AB37*ROUND(RAND()*(4-1)+1,0)+1) -> 7 | AT38: =IF(AT37=1,ROUND(RAND()*(9-2)+2,0),AT37*ROUND(RAND()*(4-1)+1,0)+1) -> 7

Sheet Percentages
C2: Percentages 1 | L2: Percentages 1 | U2: Percentages 2 | AD2: Percentages 2 | AM2: Percentages 3 | AV2: Percentages 3
C4: 1) | D4: =ROUND(RAND()*(5-1)+1,0)*10 -> 40 | E4: % | F4: of | G4: =ROUND(RAND()*(20-5)+5,0)*10 -> 80 | L4: 1) | N4: =D4/100*G4 -> 32 | U4: 1) | V4: =ROUND(RAND()*(5-1)+1,0)*10 -> 20 | W4: % | X4: of | Y4: =ROUND(RAND()*(20-5)+5,0)*10 -> 140 | AD4: 1) | AF4: =V4/100*Y4 -> 28 | AM4: 1) | AN4: =ROUND(RAND()*(5-1)+1,0)*10 -> 20 | AO4: % | AP4: of | AQ4: =ROUND(RAND()*(20-5)+5,0)*10 -> 150 | AV4: 1) | AX4: =AN4/100*AQ4 -> 30
C7: 2) | D7: =ROUND(RAND()*(5-1)+1,0)*10 -> 10 | E7: % | F7: of | G7: =ROUND(RAND()*(200-40)+40,0)*10 -> 580 | L7: 2) | N7: =D7/100*G7 -> 58 | U7: 2) | V7: =ROUND(RAND()*(5-1)+1,0)*10 -> 20 | W7: % | X7: of | Y7: =ROUND(RAND()*(200-40)+40,0)*10 -> 590 | AD7: 2) | AF7: =V7/100*Y7 -> 118 | AM7: 2) | AN7: =ROUND(RAND()*(5-1)+1,0)*10 -> 50 | AO7: % | AP7: of | AQ7: =ROUND(RAND()*(200-40)+40,0)*10 -> 1400 | AV7: 2) | AX7: =AN7/100*AQ7 -> 700
C10: 3) | D10: =100/3*ROUND(RAND()*(2-1)+1,0) -> 33.33333333 | E10: % | F10: of | G10: =ROUND(RAND()*(99-(2))+(2),0)*3 -> 174 | L10: 3) | N10: =D10/100*G10 -> 58 | U10: 3) | V10: =100/3*ROUND(RAND()*(2-1)+1,0) -> 33.33333333 | W10: % | X10: of | Y10: =ROUND(RAND()*(99-(2))+(2),0)*3 -> 255 | AD10: 3) | AF10: =V10/100*Y10 -> 85 | AM10: 3) | AN10: =100/3*ROUND(RAND()*(2-1)+1,0) -> 33.33333333 | AO10: % | AP10: of | AQ10: =ROUND(RAND()*(99-(2))+(2),0)*3 -> 240 | AV10: 3) | AX10: =AN10/100*AQ10 -> 80
C13: 4) | D13: =ROUND(RAND()*(20-1)+1,0)*5 -> 25 | E13: % | F13: of | G13: =ROUND(RAND()*(49-3)+3,1)*20 -> 476 | L13: 4) | N13: =D13/100*G13 -> 119 | U13: 4) | V13: =ROUND(RAND()*(20-1)+1,0)*5 -> 60 | W13: % | X13: of | Y13: =ROUND(RAND()*(49-3)+3,1)*20 -> 602 | AD13: 4) | AF13: =V13/100*Y13 -> 361.2 | AM13: 4) | AN13: =ROUND(RAND()*(20-1)+1,0)*5 -> 55 | AO13: % | AP13: of | AQ13: =ROUND(RAND()*(49-3)+3,1)*20 -> 980 | AV13: 4) | AX13: =AN13/100*AQ13 -> 539
C16: 5) | D16: =ROUND(RAND()*(20-1)+1,0)*5 -> 40 | E16: % | F16: of | G16: =ROUND(RAND()*(49-3)+3,1)*20 -> 716 | L16: 5) | N16: =D16/100*G16 -> 286.4 | U16: 5) | V16: =ROUND(RAND()*(20-1)+1,0)*5 -> 35 | W16: % | X16: of | Y16: =ROUND(RAND()*(49-3)+3,1)*20 -> 670 | AD16: 5) | AF16: =V16/100*Y16 -> 234.5 | AM16: 5) | AN16: =ROUND(RAND()*(20-1)+1,0)*5 -> 40 | AO16: % | AP16: of | AQ16: =ROUND(RAND()*(49-3)+3,1)*20 -> 208 | AV16: 5) | AX16: =AN16/100*AQ16 -> 83.2
C19: 6) | D19: =ROUND(RAND()*(20-1)+1,0)*5 -> 60 | E19: % | F19: of | G19: =ROUND(RAND()*(49-3)+3,1)*20 -> 122 | L19: 6) | N19: =D19/100*G19 -> 73.2 | U19: 6) | V19: =ROUND(RAND()*(20-1)+1,0)*5 -> 30 | W19: % | X19: of | Y19: =ROUND(RAND()*(49-3)+3,1)*20 -> 592 | AD19: 6) | AF19: =V19/100*Y19 -> 177.6 | AM19: 6) | AN19: =ROUND(RAND()*(20-1)+1,0)*5 -> 95 | AO19: % | AP19: of | AQ19: =ROUND(RAND()*(49-3)+3,1)*20 -> 342 | AV19: 6) | AX19: =AN19/100*AQ19 -> 324.9
C23: Percentages 4 | L23: Percentages 4 | U23: Percentages 5 | AD23: Percentages 5 | AM23: Percentages 6 | AV23: Percentages 6
C25: 1) | D25: =ROUND(RAND()*(5-1)+1,0)*10 -> 40 | E25: % | F25: of | G25: =ROUND(RAND()*(20-5)+5,0)*10 -> 180 | L25: 1) | N25: =D25/100*G25 -> 72 | U25: 1) | V25: =ROUND(RAND()*(5-1)+1,0)*10 -> 40 | W25: % | X25: of | Y25: =ROUND(RAND()*(20-5)+5,0)*10 -> 140 | AD25: 1) | AF25: =V25/100*Y25 -> 56 | AM25: 1) | AN25: =ROUND(RAND()*(5-1)+1,0)*10 -> 20 | AO25: % | AP25: of | AQ25: =ROUND(RAND()*(20-5)+5,0)*10 -> 180 | AV25: 1) | AX25: =AN25/100*AQ25 -> 36
C28: 2) | D28: =ROUND(RAND()*(5-1)+1,0)*10 -> 40 | E28: % | F28: of | G28: =ROUND(RAND()*(200-40)+40,0)*10 -> 440 | L28: 2) | N28: =D28/100*G28 -> 176 | U28: 2) | V28: =ROUND(RAND()*(5-1)+1,0)*10 -> 40 | W28: % | X28: of | Y28: =ROUND(RAND()*(200-40)+40,0)*10 -> 1280 | AD28: 2) | AF28: =V28/100*Y28 -> 512 | AM28: 2) | AN28: =ROUND(RAND()*(5-1)+1,0)*10 -> 10 | AO28: % | AP28: of | AQ28: =ROUND(RAND()*(200-40)+40,0)*10 -> 1700 | AV28: 2) | AX28: =AN28/100*AQ28 -> 170
C31: 3) | D31: =100/3*ROUND(RAND()*(2-1)+1,0) -> 33.33333333 | E31: % | F31: of | G31: =ROUND(RAND()*(99-(2))+(2),0)*3 -> 159 | L31: 3) | N31: =D31/100*G31 -> 53 | U31: 3) | V31: =100/3*ROUND(RAND()*(2-1)+1,0) -> 33.33333333 | W31: % | X31: of | Y31: =ROUND(RAND()*(99-(2))+(2),0)*3 -> 201 | AD31: 3) | AF31: =V31/100*Y31 -> 67 | AM31: 3) | AN31: =100/3*ROUND(RAND()*(2-1)+1,0) -> 33.33333333 | AO31: % | AP31: of | AQ31: =ROUND(RAND()*(99-(2))+(2),0)*3 -> 165 | AV31: 3) | AX31: =AN31/100*AQ31 -> 55
C34: 4) | D34: =ROUND(RAND()*(20-1)+1,0)*5 -> 5 | E34: % | F34: of | G34: =ROUND(RAND()*(49-3)+3,1)*20 -> 658 | L34: 4) | N34: =D34/100*G34 -> 32.9 | U34: 4) | V34: =ROUND(RAND()*(20-1)+1,0)*5 -> 85 | W34: % | X34: of | Y34: =ROUND(RAND()*(49-3)+3,1)*20 -> 536 | AD34: 4) | AF34: =V34/100*Y34 -> 455.6 | AM34: 4) | AN34: =ROUND(RAND()*(20-1)+1,0)*5 -> 80 | AO34: % | AP34: of | AQ34: =ROUND(RAND()*(49-3)+3,1)*20 -> 158 | AV34: 4) | AX34: =AN34/100*AQ34 -> 126.4
C37: 5) | D37: =ROUND(RAND()*(20-1)+1,0)*5 -> 95 | E37: % | F37: of | G37: =ROUND(RAND()*(49-3)+3,1)*20 -> 530 | L37: 5) | N37: =D37/100*G37 -> 503.5 | U37: 5) | V37: =ROUND(RAND()*(20-1)+1,0)*5 -> 80 | W37: % | X37: of | Y37: =ROUND(RAND()*(49-3)+3,1)*20 -> 238 | AD37: 5) | AF37: =V37/100*Y37 -> 190.4 | AM37: 5) | AN37: =ROUND(RAND()*(20-1)+1,0)*5 -> 70 | AO37: % | AP37: of | AQ37: =ROUND(RAND()*(49-3)+3,1)*20 -> 560 | AV37: 5) | AX37: =AN37/100*AQ37 -> 392
C40: 6) | D40: =ROUND(RAND()*(20-1)+1,0)*5 -> 10 | E40: % | F40: of | G40: =ROUND(RAND()*(49-3)+3,1)*20 -> 422 | L40: 6) | N40: =D40/100*G40 -> 42.2 | U40: 6) | V40: =ROUND(RAND()*(20-1)+1,0)*5 -> 70 | W40: % | X40: of | Y40: =ROUND(RAND()*(49-3)+3,1)*20 -> 316 | AD40: 6) | AF40: =V40/100*Y40 -> 221.2 | AM40: 6) | AN40: =ROUND(RAND()*(20-1)+1,0)*5 -> 50 | AO40: % | AP40: of | AQ40: =ROUND(RAND()*(49-3)+3,1)*20 -> 496 | AV40: 6) | AX40: =AN40/100*AQ40 -> 248
